Cogmind - Beta 14 --- EXPLORER MODE // 2024.12.03 @ 09:09:06 // AFD2019/Pay2Buy Player: mrjoebobfred Result: Establishing 0b11! Performance ------------- Evolutions (9) 4500 Regions Visited (40) 8000 Robots Destroyed (1325) 6625 Value Destroyed (82260) 82260 Prototype IDs (290) 5800 Alien Tech Used (0) 0 Bonus (74276) 74276 TOTAL SCORE: 181461 Bonus ------- Triggered High Security 1500 High Alert Combat Kills 38309 Follower Combat Kills 3652 Entered Garrisons 2000 Network Hubs Disabled 800 Met Zhirov 300 Built Enhanced Grunts 300 A7 Reached Mainframe 300 Met R17 at Cetus 500 Read Decrypted Archives 300 Met R17 at Research 2000 Scanned by Researcher 500 Pursued by Intercept 1000 Destroyed MAIN.C Guards 500 Met MAIN.C 5000 Hacked MAIN.C 300 Destroyed MAIN.C Shell 5000 Destroyed MAIN.C 10000 Win 3000 Friendly Fire -985 Cogmind --------- Core Integrity 1439/1600 Matter 300/300 Energy 1086/1100 System Corruption 0% Temperature Cool (16) Movement Treading (160) Location 0b11 Command Parts ------- > --- POWER (3) -------- Singularity Reactor > --- PROPULSION (4) --- Advanced Heavy Siege Treads Advanced Heavy Siege Treads > --- UTILITY (15) ----- Experimental Cooling System Spectral Analyzer Advanced Target Analyzer Advanced Target Analyzer Experimental Core Analyzer Improved Armor Integrity Analyzer Advanced Kinecellerator Advanced Weapon Cycler Graphene Brace Experimental Focal Shield Beam Splitter Advanced Force Field Advanced System Restoration Module Long-range Tractor Beam Mapping Drone Bay (3/3) > --- WEAPON (4) ------- Heavy Hardcell Cannon Heavy Hardcell Cannon > --- INVENTORY (10) --- Advanced Power Amplifier Advanced Matter Compressor (400) Experimental Matter Compressor (500) Improved Shock Absorption System Mapping Drone Bay (2/3) Electrostorm Shotgun (3) Graviton Cannon Tactical Quantum Warhead Point Singularity Launcher Improved Plasma Cutter Peak State ------------ > --- POWER ------------ Singularity Reactor > --- PROPULSION ------- Advanced Heavy Siege Treads Advanced Heavy Siege Treads > --- UTILITY ---------- Experimental Cooling System Experimental Matter Compressor Spectral Analyzer Advanced Target Analyzer Advanced Target Analyzer Experimental Core Analyzer Improved Armor Integrity Analyzer Advanced Kinecellerator Advanced Weapon Cycler Graphene Brace Experimental Focal Shield Beam Splitter Advanced Force Field Advanced Dynamic Insulation System Long-range Tractor Beam > --- WEAPON ----------- Heavy Hardcell Cannon Heavy Hardcell Cannon > --- INVENTORY -------- Quantum Reactor Quantum Reactor Advanced Power Amplifier Advanced Matter Compressor Improved Shock Absorption System Mapping Drone Bay Mapping Drone Bay Electrostorm Shotgun Tactical Quantum Warhead Improved Plasma Cutter [Rating: 231] Favorites ----------- Power Cooled Fission Core Engine Improved Deuterium Engine Power Core Cooled Fission Core Reactor Heavy Antimatter Reactor Propulsion Heavy Treads Treads Heavy Treads Utility Advanced Hardlight Generator Device Advanced Hardlight Generator Storage Experimental Matter Compressor Processor Advanced Target Analyzer Hackware Advanced Hacking Suite Protection Heavy Reactive Plating Weapon Improved Heavy Machine Gun Energy Gun Improved Arc Thrower Energy Cannon Cooled Particle Cannon Ballistic Gun Improved Heavy Machine Gun Ballistic Cannon Tri-rail Accelerator Launcher Tactical Quantum Warhead Special Weapon Plasma Cutter Special Melee Weapon Datajack Build | -11 -10 -10 -10 -9 -8 -8 -8 -8 -8 -8 -8 -8 -6 -6 -6 -6 -6 -6 -6 -6 -6 -6 -6 -5 -5 -5 -5 -5 -5 -4 -4 -4 -4 -3 -3 -3 -3 -2 -1 -1 ------- Run | Yrd Mat Min Exi Min Mat Gar Mat Gar Mat Sto Rec Scr Fac Gar Fac Gar Fac Gar Fac Gar Fac Gar Fac Fac Ext Cet Arc Hub Gar Fac Was Fac Gar Res Qua Sec Gar Res Acc Com Slots Evolved 19 | . 1 . . . 4 . . . . . . . 4 . . . . . . . . . . 2 . . . . . 2 . . . 2 . . . 2 2 . Power 2 | . . . . . . . . . . . . . 1 . . . . . . . . . . . . . . . . . . . . . . . . 1 . . Propulsion 2 | . . . . . 1 . . . . . . . 1 . . . . . . . . . . . . . . . . . . . . . . . . . . . Utility 13 | . 1 . . . 2 . . . . . . . 1 . . . . . . . . . . 2 . . . . . 2 . . . 2 . . . 1 2 . Weapon 2 | . . . . . 1 . . . . . . . 1 . . . . . . . . . . . . . . . . . . . . . . . . . . . Parts Attached 299 | . 3 1 . 1 4 1 1 10 1 6 6 . 7 11 1 1 13 1 1 3 15 7 . 1 8 3 3 39 10 6 2 29 12 7 7 11 . 10 26 31 Power 3 | . . . . . . . . . . . . . . . 1 . 1 . . . . . . . . . . . . . . . . . . . . 1 . . Engine . | . . . . . . . . . . . . . . . . . . . . . . . . . . . . . . . . . . . . . . . . . Core 2 | . . . . . . . . . . . . . . . 1 . 1 . . . . . . . . . . . . . . . . . . . . . . . Reactor 1 | . . . . . . . . . . . . . . . . . . . . . . . . . . . . . . . . . . . . . . 1 . . Propulsion 5 | . . . . . . . . . . . . . . . . . . . . . . . . . . . . . . . . 1 . 1 . . . . . 3 Treads 5 | . . . . . . . . . . . . . . . . . . . . . . . . . . . . . . . . 1 . 1 . . . . . 3 Leg . | . . . . . . . . . . . . . . . . . . . . . . . . . . . . . . . . . . . . . . . . . Wheel . | . . . . . . . . . . . . . . . . . . . . . . . . . . . . . . . . . . . . . . . . . Hover . | . . . . . . . . . . . . . . . . . . . . . . . . . . . . . . . . . . . . . . . . . Flight . | . . . . . . . . . . . . . . . . . . . . . . . . . . . . . . . . . . . . . . . . . Utility 177 | . . . . 1 . . . . . 4 . . 3 1 . 1 10 1 1 3 8 5 . 1 5 . 1 32 10 6 2 16 9 6 4 9 . 9 14 15 Device 164 | . . . . 1 . . . . . 4 . . 3 . . 1 10 1 1 3 8 5 . 1 5 . 1 30 10 6 2 15 9 5 4 6 . 9 12 12 Storage 2 | . . . . . . . . . . . . . . . . . . . . . . . . . . . . . . . . . . . . . . . . 2 Processor 1 | . . . . . . . . . . . . . . . . . . . . . . . . . . . . . . . . . . . . 1 . . . . Hackware . | . . . . . . . . . . . . . . . . . . . . . . . . . . . . . . . . . . . . . . . . . Protection 10 | . . . . . . . . . . . . . . 1 . . . . . . . . . . . . . 2 . . . 1 . 1 . 2 . . 2 1 Artifact . | . . . . . . . . . . . . . . . . . . . . . . . . . . . . . . . . . . . . . . . . . Weapon 114 | . 3 1 . . 4 1 1 10 1 2 6 . 4 10 . . 2 . . . 7 2 . . 3 3 2 7 . . . 12 3 . 3 2 . . 12 13 Energy Gun 4 | . . . . . . . . . . . . . . . . . . . . . . . . . . . . . . . . 3 . . . . . . . 1 Energy Cannon 1 | . . . . . 1 . . . . . . . . . . . . . . . . . . . . . . . . . . . . . . . . . . . Ballistic Gun 33 | . 1 1 . . . . 1 5 1 1 3 . 2 7 . . 1 . . . 4 1 . . 1 1 . . . . . . . . 2 1 . . . . Ballistic Cannon 24 | . . . . . . . . . . . . . . . . . . . . . . . . . . . 1 3 . . . 4 1 . 1 1 . . 6 7 Launcher 12 | . . . . . 1 1 . . . . . . . . . . . . . . . . . . . . . . . . . . 1 . . . . . 6 3 Special Weapon 13 | . . . . . . . . 5 . . . . . 1 . . . . . . . 1 . . 1 1 . 2 . . . . . . . . . . . 2 Impact Weapon . | . . . . . . . . . . . . . . . . . . . . . . . . . . . . . . . . . . . . . . . . . Slashing Weapon . | . . . . . . . . . . . . . . . . . . . . . . . . . . . . . . . . . . . . . . . . . Piercing Weapon . | . . . . . . . . . . . . . . . . . . . . . . . . . . . . . . . . . . . . . . . . . Special Melee Weapon 27 | . 2 . . . 2 . . . . 1 3 . 2 2 . . 1 . . . 3 . . . 1 1 1 2 . . . 5 1 . . . . . . . Unidentified Prototypes 2 | . . . . 1 . . . . . . . . . . . . . . . . . . . . . . . . . . . . . . . . . . 1 . Parts Lost 17 | . . . . 1 2 . . . 2 1 . . 1 1 . . . . 1 . . . . . . . 1 . 1 . . 1 . . 1 . . . 1 3 Power 1 | . . . . . . . . . . . . . 1 . . . . . . . . . . . . . . . . . . . . . . . . . . . Propulsion 3 | . . . . 1 . . . . 1 1 . . . . . . . . . . . . . . . . . . . . . . . . . . . . . . Utility 11 | . . . . . 1 . . . 1 . . . . 1 . . . . 1 . . . . . . . 1 . 1 . . 1 . . . . . . 1 3 Weapon 2 | . . . . . 1 . . . . . . . . . . . . . . . . . . . . . . . . . . . . . 1 . . . . . Highest Loss Streak 2 | . . . . 1 1 . . . 1 1 . . 1 1 . . . . 1 . . . . . . . 1 . 1 . . 1 . . 1 . . . 1 2 To Critical Strikes . | . . . . . . . . . . . . . . . . . . . . . . . . . . . . . . . . . . . . . . . . . Average Slot Usage (%) 80 | . 62 62 62 79 65 79 94 99 90 93 91 91 86 86 83 79 80 80 81 81 80 81 81 79 82 83 72 77 76 78 79 80 80 80 82 89 90 73 75 75 Engine 1 | . . . . . 7 8 8 8 8 8 8 8 . . . . . . . . . . . . . . . . . . . . . . . . . . . . Core 5 | . . . . . . . . . . . . . 12 12 11 12 12 12 12 12 12 12 12 11 11 11 11 11 . . . . . . . . . . . . Reactor 1 | . . . . . . . . . . . . . . . . . . . . . . . . . . . . . 11 10 10 10 10 9 8 9 9 4 3 3 Treads 13 | . 25 25 25 22 16 16 25 25 16 18 16 16 12 12 12 12 12 12 12 12 12 12 12 11 11 11 11 11 11 10 10 10 10 9 9 9 9 8 7 6 Device 20 | . . . . 10 9 17 19 24 24 16 16 16 12 12 18 16 18 18 16 18 13 18 18 23 22 22 22 24 26 29 34 29 25 26 28 32 31 32 34 34 Processor 9 | . . . . . . 6 8 8 8 15 16 16 17 17 8 6 5 5 6 6 6 6 6 5 10 11 11 5 5 10 10 10 15 13 13 13 13 12 15 19 Hackware 1 | . . . . . . . . . . . . . . . . . . . 1 . 4 . . . . . . 7 5 5 5 5 5 4 2 . . . . . Protection 6 | . 12 12 12 21 10 8 8 8 8 8 8 8 6 5 6 6 6 6 6 6 6 6 6 5 5 5 5 5 5 4 . 4 5 8 9 7 9 8 6 1 Ballistic Gun 15 | . 19 25 25 25 11 . 8 22 24 24 23 25 24 24 25 25 24 25 25 25 24 24 25 22 20 19 . . . . . . . . 1 7 15 . . . Ballistic Cannon 2 | . . . . . . . . . . . . . . . . . . . . . . . . . . . 9 10 11 10 10 9 9 9 8 9 2 7 6 6 Peak Build Rating 231 | 10 10 10 10 23 34 41 41 42 40 44 41 41 95 97 99 99 101 101 101 98 100 100 100 117 119 118 130 130 129 148 151 155 156 174 184 193 193 210 224 231 Average Rating 104 | 10 9 10 10 20 23 35 40 41 39 42 40 41 91 94 98 97 98 100 100 97 99 99 100 110 118 117 121 126 128 143 150 152 154 173 178 189 191 202 222 224 On Entrance 96 | . 10 9 10 10 15 33 41 41 38 40 41 41 41 94 97 99 99 101 100 100 98 98 100 100 112 118 118 130 125 129 148 151 155 154 173 183 193 191 210 223 Naked Turns . | . . . . . . . . . . . . . . . . . . . . . . . . . . . . . . . . . . . . . . . . . Heaviest Build 158 | 13 13 13 13 24 42 41 41 49 49 49 49 46 76 81 96 96 97 97 96 95 95 96 96 104 101 92 115 93 97 100 93 101 100 121 121 134 129 151 158 139 Greatest Support 160 | 46 46 46 46 46 45 73 73 50 50 78 56 56 140 140 140 140 140 140 140 140 140 140 140 140 140 140 150 150 150 150 150 155 155 160 160 160 160 160 160 160 Greatest Overweight (x) 1 | . . . . . . . . . . . . . . . . . . . . . . . . . . . . . . . . . . . . . . . . 1 Average Overweight (x) . | . . . . . . . . . . . . . . . . . . . . . . . . . . . . . . . . . . . . . . . . . Largest Inventory Capacity 10 | 10 10 10 10 10 10 10 10 10 10 10 10 10 10 10 10 10 10 10 10 10 10 10 10 10 10 10 10 10 10 10 10 10 10 10 10 10 10 10 10 10 Average Capacity 10 | 10 10 10 10 10 10 10 10 10 10 10 10 10 10 10 10 10 10 10 10 10 10 10 10 10 10 10 10 10 10 10 10 10 10 10 10 10 10 10 10 10 Most Carried 10 | 2 3 4 4 5 6 7 10 10 8 8 8 8 10 10 10 10 10 10 10 9 9 9 9 10 10 10 10 10 10 10 10 10 10 10 10 10 10 10 10 10 Average Carried 8 | 2 2 3 4 4 4 6 7 8 8 8 8 8 9 10 10 9 8 8 8 9 8 8 9 9 10 10 9 9 10 8 9 7 9 9 9 8 9 6 9 9 Final Capacity 10 | 10 10 10 10 10 10 10 10 10 10 10 10 10 10 10 10 10 10 10 10 10 10 10 10 10 10 10 10 10 10 10 10 10 10 10 10 10 10 10 10 10 Final Carried 10 | 2 3 4 4 5 6 7 9 8 8 8 8 8 10 10 10 9 8 9 8 9 9 9 9 10 10 10 10 10 10 10 10 9 10 10 10 9 10 7 10 10 Class Distribution -------------------- 57% | Hacker-Tank 22% | Hacker-Gunner 12% | Hacker-Mutant 5% | Commander-Gunner Dominant Class ---------------- Hacker-Mutant | -10/Materials Hacker-Mutant | -10/Mines Hacker-Mutant | -10/Exiles Hacker-Mutant | -9/Mines Hacker-Mutant | -8/Materials Hacker-Tank | -8/Garrison Hacker-Tank | -8/Materials Hacker-Gunner | -8/Garrison Hacker-Gunner | -8/Materials Hacker-Gunner | -8/Storage Commander-Gunner | -8/Recycling Commander-Gunner | -8/Scraptown Hacker-Tank | -6/Factory Hacker-Tank | -6/Garrison Hacker-Tank | -6/Factory Hacker-Tank | -6/Garrison Hacker-Tank | -6/Factory Hacker-Tank | -6/Garrison Hacker-Tank | -6/Factory Hacker-Tank | -6/Garrison Hacker-Tank | -6/Factory Hacker-Tank | -6/Garrison Hacker-Tank | -6/Factory Hacker-Tank | -5/Factory Hacker-Gunner | -5/Extension Hacker-Gunner | -5/Cetus Hacker-Gunner | -5/Archives Hacker-Tank | -5/Hub_04(d) Hacker-Tank | -5/Garrison Hacker-Tank | -4/Factory Hacker-Gunner | -4/Waste Hacker-Tank | -4/Factory Hacker-Tank | -4/Garrison Hacker-Tank | -3/Research Hacker-Tank | -3/Quarantine Hacker-Tank | -3/Section 7 Hacker-Tank | -3/Garrison Hacker-Tank | -2/Research Hacker-Tank | -1/Access Hacker-Gunner | -1/Command Resources | -11 -10 -10 -10 -9 -8 -8 -8 -8 -8 -8 -8 -8 -6 -6 -6 -6 -6 -6 -6 -6 -6 -6 -6 -5 -5 -5 -5 -5 -5 -4 -4 -4 -4 -3 -3 -3 -3 -2 -1 -1 ----------- Run | Yrd Mat Min Exi Min Mat Gar Mat Gar Mat Sto Rec Scr Fac Gar Fac Gar Fac Gar Fac Gar Fac Gar Fac Fac Ext Cet Arc Hub Gar Fac Was Fac Gar Res Qua Sec Gar Res Acc Com Matter Collected 38647 | . 274 34 . 108 733 65 . 777 848 586 127 . 835 1785 881 822 1707 1129 124 1278 2044 962 4 58 1177 282 . 2160 1580 721 259 2328 747 578 855 2507 366 418 3696 5792 Remotely 16961 | . . . . . . . . . . . . . . . . . 43 . . 273 827 427 . . 225 . . 1334 475 470 . 1545 639 140 728 1568 . 244 2305 5718 Salvage Created 57353 | . 203 63 . 155 1318 959 . 1165 1724 1288 553 . 1375 3438 1741 1563 3474 1306 261 2176 3040 1670 . 191 1745 247 166 2124 1629 1321 288 3619 539 582 678 4027 1124 842 5451 5308 Parts . | . . . . . . . . . . . . . . . . . . . . . . . . . . . . . . . . . . . . . . . . . Haulers Intercepted 9 | . 1 . . . . . . . 1 2 . . . . . . . . . . . . . 1 . . . . . . . 1 . . . 1 . . 2 . Recyclers Shooed 5 | . . . . . . . . . . . . . . . 1 . . . . . . . . . . . . . . . . . . . 3 . . . 1 . Parts Field Recycled . | . . . . . . . . . . . . . . . . . . . . . . . . . . . . . . . . . . . . . . . . . Retrieved Matter . | . . . . . . . . . . . . . . . . . . . . . . . . . . . . . . . . . . . . . . . . . Parts Self-Destructed . | . . . . . . . . . . . . . . . . . . . . . . . . . . . . . . . . . . . . . . . . . Prevented . | . . . . . . . . . . . . . . . . . . . . . . . . . . . . . . . . . . . . . . . . . Kills | -11 -10 -10 -10 -9 -8 -8 -8 -8 -8 -8 -8 -8 -6 -6 -6 -6 -6 -6 -6 -6 -6 -6 -6 -5 -5 -5 -5 -5 -5 -4 -4 -4 -4 -3 -3 -3 -3 -2 -1 -1 ------- Run | Yrd Mat Min Exi Min Mat Gar Mat Gar Mat Sto Rec Scr Fac Gar Fac Gar Fac Gar Fac Gar Fac Gar Fac Fac Ext Cet Arc Hub Gar Fac Was Fac Gar Res Qua Sec Gar Res Acc Com Combat Hostiles Destroyed 1226 | . 4 3 . 8 30 32 . 30 29 23 11 . 21 63 23 23 54 38 5 52 64 37 . 1 25 4 3 60 53 35 . 77 24 13 9 56 19 17 156 124 Melee 1 | . . . . . . . . . . . . . . . . . . . . . . . . . . . . . . . . . . . . . . . . 1 Guns 582 | . 4 3 . 8 26 . . 30 29 23 11 . 21 61 23 23 54 38 5 52 59 37 . 1 25 4 . . . . . . . . . 26 19 . . . Cannons 550 | . . . . . 4 26 . . . . . . . . . . . . . . . . . . . . 3 60 53 33 . 73 19 13 9 30 . 17 113 97 AOE 86 | . . . . . . 4 . . . . . . . 2 . . . . . . 5 . . . . . . . . 2 . 3 5 . . . . . 42 23 Classes Destroyed 29 | . 4 . . 2 5 1 . 1 2 1 2 . . 4 . . 1 . . . . . . . . . . . . . . . . . 1 4 . . 1 . Worker 27 | . . . . . 2 . . . 1 2 . . 4 . 1 . 1 . . . 1 . . . 2 . . 3 . 1 . 7 . . . 1 . . 1 . Builder 21 | . . . . . . . . . 1 . . . . . 2 . 2 . . . 2 . . 1 2 . . 1 . . . 1 . . . 2 . . 7 . Tunneler 4 | . . . . . . . . . . . 1 . . . . . 1 . . . . . . . . . . . . . . 1 . . . . . . 1 . Hauler 9 | . 1 . . . . . . . 1 2 . . . . . . . . . . . . . 1 . . . . . . . 1 . . . 1 . . 2 . Recycler 16 | . . . . . . . . . . 1 . . . . 1 . 1 . . . . . . . 3 . . . . . . 2 . . 2 . . . 5 1 Mechanic 12 | . . . . . . . . . . . . . . . . . 1 . . . . . . . 1 . . . . . . . . . . 1 . . 3 6 Operator 22 | . . . . . 1 . . . . . . . . . 4 . 2 . 1 . 1 . . . . . . 3 . 1 . 2 . . 1 2 . . 4 . Drone 2 | . . . . . . . . . . . . . . . . . . . . . . . . . . . . . . . . . . . . . . . 1 1 Watcher 65 | . 2 . . . 4 . . 1 5 2 . . 3 1 1 . 4 . . . 4 . . . 2 1 . 5 . 2 . 9 . 2 1 4 . . 7 5 Swarmer 194 | . 2 2 . 3 9 17 . 8 . 5 . . 5 17 3 2 7 6 . 12 7 7 . . 3 . . 2 8 11 . . 10 4 2 7 11 4 17 3 Cutter 23 | . . . . . . . . . . . . . . 7 . . . 6 . 4 . . . . . . . . 6 . . . . . . . . . . . Saboteur 19 | . . . . . . . . . . . . . . 1 . . . 5 . . . . . . . . . 1 . 1 . 3 . . . 1 . . 2 5 Grunt 446 | . 2 1 . 2 9 8 . 12 13 9 1 . 6 20 10 11 17 11 4 17 33 20 . . 9 . . 26 19 13 . 40 8 5 . 14 2 3 51 50 Brawler 47 | . . . . . 1 . . . 1 . . . . 5 2 1 4 . . 2 1 2 . . . . . 2 2 3 . 2 . . . 2 . . 13 4 Duelist 41 | . . . . . . . . . 3 . 2 . . . . . 6 . . 6 3 . . . 3 . . . 1 2 . 2 . . . 2 1 . 5 5 Protector 29 | . . . . . . . . . . . 1 . . . 1 . 1 . . . 2 . . . . . 1 4 . . . 1 . . . 1 . . 11 6 Researcher 6 | . . . . . . . . . . . . . . . . . . . . . . . . . . . . . . . . . . . . 6 . . . . Sentry 140 | . . . . . 9 4 . 4 10 9 4 . 5 9 2 5 12 3 . 1 6 4 . 1 4 . 2 10 7 2 . 8 2 2 . 4 2 2 3 4 Demolisher 1 | . . . . 1 . . . . . . . . . . . . . . . . . . . . . . . . . . . . . . . . . . . . Specialist 12 | . . . . . . . . 1 . . . . . . . 2 . 2 . 7 . . . . . . . . . . . . . . . . . . . . Hunter 71 | . . . . . 2 . . 2 2 . . . 3 . 3 1 . 1 . . 2 2 . . 4 . . 2 3 . . 4 2 1 . 6 3 2 20 6 Programmer 114 | . . . . . . 3 . 3 . . 3 . 2 1 2 . 7 1 1 2 9 2 . . . . . 4 3 2 . 15 2 . 6 7 . 4 17 18 Q-Series 3 | . . . . . . . . . . . . . . . . . . . . . . . . . . . . . . . . . . . . 1 . . 2 . Behemoth 24 | . . . . . . . . . . . . . . 1 . 1 . 1 . 1 1 . . . 2 . . . 4 1 . 2 . 1 . 2 . 2 3 2 Cetus Guard 4 | . . . . . . . . . . . . . . . . . . . . . . . . . . 4 . . . . . . . . . . . . . . S7 Guard 1 | . . . . . . . . . . . . . . . . . . . . . . . . . . . . . . . . . . . . 1 . . . . M Guard 2 | . . . . . . . . . . . . . . . . . . . . . . . . . . . . . . . . . . . . . . . . 2 Lightning 9 | . . . . . . . . . . . . . . . . . . . . . . . . . . . . 9 . . . . . . . . . . . . Tracker 7 | . . . . . . . . . . . . . . . . . . . . . . . . . . . . . . . . . . . . 2 . . 5 . Combat Programmer 9 | . . . . . . . . . . . . . . . . . . . . . . . . . . . . . . . . . . . . 2 . . 5 2 Investigator 3 | . . . . . . . . . . . . . . . . . . . . . . . . . . . . . . . . . . . . . . . 2 1 Striker 8 | . . . . . . . . . . . . . . 2 . . . 2 . . . . . . . . . . . . . . . . . . . . 1 3 Executioner 9 | . . . . . . . . . . . . . . . . . . . . . . . . . . . . . . . . . . . . 2 . . 1 6 Alpha 7 2 | . . . . . . . . . . . . . . . . . . . . . . . . . . . . . . . . . . . . 2 . . . . Fortress 1 | . . . . . . . . . . . . . . . . . . . . . . . . . . . . . . . . . . . 1 . . . . . Assembled 2 | . . . . 2 . . . . . . . . . . . . . . . . . . . . . . . . . . . . . . . . . . . . Thug 4 | . . . . . . . . . . . . . . . . . . . . . . . . . 1 . . . . . . . . . . . . . . 3 Wizard 2 | . . . . . . . . . . . . . . . . . . . . . . . . . . . . . . . . . . . . . . . . 2 Best Kill Streak 30 | . 2 2 . 3 5 8 . 8 5 5 4 . 5 12 8 6 5 5 3 12 5 11 . 3 7 3 3 7 8 12 . 13 10 6 3 9 9 8 30 21 Combat Bots Only 25 | . 2 2 . 3 5 8 . 8 4 4 4 . 3 12 7 6 4 5 3 12 5 11 . 1 4 2 3 7 8 11 . 10 10 6 3 8 9 8 25 20 Max Kills in Single Turn 7 | . 2 1 . 2 2 3 . 2 2 2 2 . 3 3 2 1 2 3 1 2 2 2 . 2 3 1 1 2 1 3 . 4 3 2 2 2 2 1 7 5 Gunslinging 1 | . 1 . . 1 1 . . 1 1 1 1 . 1 1 . . 1 1 . 1 1 1 . . 1 . . . . . . . . . . 1 1 . . . Exploded 6 | . . . . . . 3 . . . . . . . 2 . . . . . . 2 . . . . . . . . 2 . 2 3 . . . . . 6 4 Melee 1 | . . . . . . . . . . . . . . . . . . . . . . . . . . . . . . . . . . . . . . . . 1 Uniques/NPCs Destroyed 2 | . . . . . . . . . . . . . . . . . . . . . . . . . . . . . . . . . . . . . . . . 2 MAIN.C Shell (-1/Command) MAIN.C (-1/Command) Combat | -11 -10 -10 -10 -9 -8 -8 -8 -8 -8 -8 -8 -8 -6 -6 -6 -6 -6 -6 -6 -6 -6 -6 -6 -5 -5 -5 -5 -5 -5 -4 -4 -4 -4 -3 -3 -3 -3 -2 -1 -1 -------- Run | Yrd Mat Min Exi Min Mat Gar Mat Gar Mat Sto Rec Scr Fac Gar Fac Gar Fac Gar Fac Gar Fac Gar Fac Fac Ext Cet Arc Hub Gar Fac Was Fac Gar Res Qua Sec Gar Res Acc Com Hostile Shots Fired 5609 | . 7 3 . 23 126 93 . 74 85 51 41 . 91 188 73 135 234 113 8 158 243 236 2 4 126 53 15 200 209 178 . 212 284 17 83 473 57 71 883 760 Missed 1521 | . 1 1 . 6 25 32 . 25 26 15 9 . 31 48 24 41 72 32 1 37 78 66 1 . 28 17 5 45 59 60 . 73 89 3 24 91 19 20 234 183 Damage Taken 10836 | . 38 8 . 445 423 201 . 231 279 96 289 . 213 452 36 26 243 205 38 181 342 81 81 2 43 192 475 1264 229 29 . 366 14 98 319 498 1 135 1131 2132 Core 697 | . 6 . . 111 16 17 . 19 18 5 19 . 27 26 . 9 23 18 . . 4 . 17 . 3 6 68 93 20 . . . . . . 11 . . 2 159 Absorbed by Shields 16932 | . . . . . 380 192 . 157 224 124 22 . 192 552 197 422 629 413 22 637 741 920 . 27 524 92 26 1027 897 720 . 490 748 80 214 1341 195 70 2887 1770 Reduced by Siege Mode 640 | . . . . . . . . . . . . . . 34 . 1 2 9 . 13 . 11 . . 1 4 . 89 12 . . 3 . 8 34 29 . . 67 323 Ignored by Resistances 60030 | . 25 6 . 91 672 351 . 374 440 231 202 . 698 1411 501 1089 1452 1283 58 1600 1711 1731 48 63 1480 750 400 1907 1827 1506 . 2210 2638 239 1978 6467 626 1258 9966 12741 Core Remaining (%) 87 | 100 . . . 53 . . . . . . . 82 . . . . . . . . . . 85 . . . . . 81 . . . 100 . . . 99 100 . 89 Volleys Fired 2585 | . 11 3 . 12 99 75 . 61 72 45 18 . 42 109 49 65 96 81 9 98 114 64 1 3 70 17 5 128 121 61 8 158 41 26 61 143 26 35 296 262 Largest 4 | . 2 2 . 2 2 2 . 3 3 3 3 . 4 4 4 4 4 4 4 4 4 4 1 4 4 4 2 2 2 2 2 2 2 2 3 4 4 2 2 2 Hottest 220 | . 46 46 . 46 60 60 . 71 71 71 71 . 60 60 60 60 60 60 60 60 60 60 15 60 60 60 120 120 120 120 120 120 120 120 168 220 160 160 160 160 Shots Fired 6495 | . 22 6 . 25 188 123 . 161 212 135 55 . 168 401 202 220 384 269 35 321 455 223 1 12 277 68 10 214 176 95 16 267 66 50 138 449 78 42 483 448 Gun 4181 | . 22 6 . 25 169 . . 161 212 135 55 . 168 401 202 220 384 269 35 321 455 223 1 12 277 68 . . . . . 7 . . 46 226 78 . . 3 Cannon 2265 | . . . . . 18 120 . . . . . . . . . . . . . . . . . . . . 10 214 176 95 16 260 63 50 89 223 . 42 462 427 Launcher 41 | . . . . . 1 3 . . . . . . . . . . . . . . . . . . . . . . . . . . 3 . . . . . 20 14 Special 8 | . . . . . . . . . . . . . . . . . . . . . . . . . . . . . . . . . . . 3 . . . 1 4 Kinetic 6298 | . 22 6 . 25 169 . . 161 212 135 55 . 168 401 202 220 384 269 35 321 455 223 1 12 277 68 10 214 176 95 16 260 63 50 135 449 78 42 462 427 Thermal 138 | . . . . . 18 120 . . . . . . . . . . . . . . . . . . . . . . . . . . . . . . . . . . Explosive 40 | . . . . . 1 3 . . . . . . . . . . . . . . . . . . . . . . . . . . 3 . . . . . 19 14 Electromagnetic 10 | . . . . . . . . . . . . . . . . . . . . . . . . . . . . . . . . 7 . . . . . . . 3 Robot Hit Streak 75 | . 12 8 . 23 34 42 . 24 26 33 22 . 28 62 75 31 48 35 12 40 49 34 2 9 52 21 21 62 67 37 19 62 65 38 58 47 28 25 52 63 Robot Miss Streak 5 | . 2 . . 2 2 2 . 1 2 1 1 . 3 3 2 3 3 4 1 1 2 2 . 1 2 3 2 2 4 3 1 4 3 3 1 4 2 1 4 5 Penetration Max 1 | . . . . . . . . . . . . . . . . . . . . . . . . . . . . . . . . . . . 1 1 1 . . . Secondary Targets 169 | . 2 . . 3 4 . . 15 3 5 3 . 4 24 5 4 14 10 . 18 14 22 . . 7 3 . . . . . . . . . 2 7 . . . Max Gunslinging Chain 2 | . 1 . . 1 1 . . 1 1 2 1 . 1 2 1 1 1 1 . 1 2 2 . . 2 1 . . . . . . . . . 1 1 . . . Shots Hit Robots 4980 | . 19 5 . 20 156 66 . 121 164 94 99 . 125 294 139 152 297 189 19 216 341 179 1 9 222 57 12 199 135 81 16 231 54 39 121 338 61 37 344 328 Core Hits 2666 | . 9 4 . 11 65 34 . 54 71 45 16 . 50 114 62 51 120 60 10 91 138 69 . 6 76 20 14 159 94 71 4 231 44 30 49 156 40 18 323 257 Critical Kills 92 | . . . . . . 2 . . 1 2 1 . 2 6 . . 1 6 . 6 8 6 . . 5 1 . . . . . . . . . 27 18 . . . Critical Parts Destroyed 145 | . . . . . . . . 1 1 4 1 . 6 15 . 1 1 8 . 8 17 7 . . 17 4 . . . . . . . . 5 36 13 . . . Critical Strikes 376 | . . . . . . 2 . 1 2 6 2 . 8 22 . 1 2 14 . 15 26 14 . . 22 5 1 10 10 7 1 11 . 1 8 77 31 2 31 44 Meltdown 2 | . . . . . . 2 . . . . . . . . . . . . . . . . . . . . . . . . . . . . . . . . . . Destroy 244 | . . . . . . . . 1 2 6 2 . 8 22 . 1 2 14 . 15 26 14 . . 22 5 . . . . . . . . 5 68 31 . . . Blast 129 | . . . . . . . . . . . . . . . . . . . . . . . . . . . 1 10 10 7 1 11 . 1 3 9 . 2 31 43 Corrupt 1 | . . . . . . . . . . . . . . . . . . . . . . . . . . . . . . . . . . . . . . . . 1 Melee Attacks 74 | . 1 . . . . . . . . . 55 . 1 9 . . . . . . . . . . . 2 3 1 . . . 2 . . . . . . . . Impact . | . . . . . . . . . . . . . . . . . . . . . . . . . . . . . . . . . . . . . . . . . Slashing . | . . . . . . . . . . . . . . . . . . . . . . . . . . . . . . . . . . . . . . . . . Piercing . | . . . . . . . . . . . . . . . . . . . . . . . . . . . . . . . . . . . . . . . . . Sneak Attacks 71 | . 1 . . . . . . . . . 54 . 1 8 . . . . . . . . . . . 2 3 . . . . 2 . . . . . . . . Combat Hostiles 37 | . . . . . . . . . . . 37 . . . . . . . . . . . . . . . . . . . . . . . . . . . . . Follow-up Attacks . | . . . . . . . . . . . . . . . . . . . . . . . . . . . . . . . . . . . . . . . . . Damage Inflicted 237679 | . 284 91 . 326 2809 2269 . 2125 3037 1921 874 . 2856 6852 3845 3872 7930 5516 590 5688 10082 4922 35 314 6358 1686 704 13746 10266 5817 1296 18444 4482 3513 5588 10479 797 3433 43659 41173 Guns 74199 | . 284 74 . 315 2279 . . 2125 3037 1866 874 . 2808 6636 3845 3872 7879 5516 590 5688 8351 4922 35 314 6197 1686 . . . . . 226 . . 1141 2556 797 . . 286 Cannons 134058 | . . . . . 471 2044 . . . . . . . . . . . . . . . . . . . . 704 13699 10266 5581 1296 16274 3869 3496 4447 7923 . 3433 29751 30804 Explosions 28949 | . . . . . 1 225 . . . 48 . . . 216 . . . . . . 1703 . . . . . . . . 235 . 1917 613 . . . . . 13908 10083 Melee . | . . . . . . . . . . . . . . . . . . . . . . . . . . . . . . . . . . . . . . . . . Ramming 473 | . . 17 . 11 58 . . . . 7 . . 48 . . . 51 . . . 28 . . . 161 . . 47 . 1 . 27 . 17 . . . . . . Kinetic 205230 | . 284 74 . 315 2279 . . 2125 3037 1866 874 . 2808 6636 3845 3872 7879 5516 590 5688 8351 4922 35 314 6197 1686 704 13699 10266 5581 1296 16274 3869 3496 5588 10479 797 3433 29751 30804 Thermal 3567 | . . . . . 471 2044 . . . . . . . . . . . . . . 1052 . . . . . . . . . . . . . . . . . . . Explosive 27756 | . . . . . 1 225 . . . 48 . . . 216 . . . . . . 651 . . . . . . . . 235 . 1776 613 . . . . . 13908 10083 Electromagnetic 653 | . . . . . . . . . . . . . . . . . . . . . . . . . . . . . . . . 367 . . . . . . . 286 Impact . | . . . . . . . . . . . . . . . . . . . . . . . . . . . . . . . . . . . . . . . . . Slashing . | . . . . . . . . . . . . . . . . . . . . . . . . . . . . . . . . . . . . . . . . . Piercing . | . . . . . . . . . . . . . . . . . . . . . . . . . . . . . . . . . . . . . . . . . Highest Corruption 21 | . . . . 3 . 1 1 2 1 . 3 . . 3 5 5 1 1 1 1 2 . . . . . . 1 2 1 . 2 . . 2 8 8 1 8 21 Average Corruption 4 | . . . . 3 . 1 1 1 1 . 2 . . 3 3 3 1 1 1 1 1 . . . . . . 1 2 1 . 1 . . 1 4 8 1 4 13 Corruption Purged 40 | . . . . . . . . 3 2 . 3 . . . . 5 . . . 1 2 . . . . . . 2 . 1 . . . . . . . . . 21 Corruption Blocked . | . . . . . . . . . . . . . . . . . . . . . . . . . . . . . . . . . . . . . . . . . Effects 330 | . . . . 5 . 19 2 . 2 . 9 . . 6 39 6 2 14 5 . 1 . . . . . . 4 13 . . 2 . . 3 43 10 . 45 100 Message Errors 66 | . . . . . . 2 . . 1 . 1 . . 3 11 2 . 2 1 . . . . . . . . 1 3 . . 1 . . 1 10 2 . 5 20 Matter Fused 68 | . . . . . . 4 2 . . . 3 . . . 8 . . 5 1 . 1 . . . . . . 1 3 . . 1 . . . 7 1 . 10 21 Heat Flow Errors 44 | . . . . 4 . 3 . . . . . . . . 5 . 1 2 . . . . . . . . . . 3 . . . . . . 9 . . 7 10 Energy Discharges 38 | . . . . . . 3 . . . . 2 . . . 2 2 . 1 2 . . . . . . . . 2 1 . . . . . 1 5 1 . 6 10 Parts Rejected 10 | . . . . . . . . . . . . . . 1 1 . . . . . . . . . . . . . . . . . . . . . . . 4 4 Parts Fused 2 | . . . . . . 1 . . . . . . . . 1 . . . . . . . . . . . . . . . . . . . . . . . . . Data Loss (minor) 34 | . . . . . . 3 . . . . 1 . . 2 3 . 1 . . . . . . . . . . . 3 . . . . . . 2 . . 7 12 Data Loss (major) 15 | . . . . . . 1 . . 1 . 1 . . . 2 . . 1 . . . . . . . . . . . . . . . . . 1 1 . 1 6 Misfires 21 | . . . . 1 . 1 . . . . 1 . . . 6 . . . . . . . . . . . . . . . . . . . 1 3 . . 4 4 Alerts 8 | . . . . . . 1 . . . . . . . . . 1 . 2 . . . . . . . . . . . . . . . . . 1 1 . . 2 Weapon Failures 24 | . . . . . . . . . . . . . . . . 1 . 1 1 . . . . . . . . . . . . . . . . 5 4 . 1 11 Overload Shots . | . . . . . . . . . . . . . . . . . . . . . . . . . . . . . . . . . . . . . . . . . Overflow Damage 8143 | . . . . . 9 123 . . . . . . . 20 . . . . . . 64 . . . . . . 268 158 119 . 533 129 10 97 140 . 302 2477 3694 Projectiles 7539 | . . . . . . 123 . . . . . . . . . . . . . . . . . . . . . 268 158 119 . 408 102 10 97 140 . 302 2280 3532 Explosions 595 | . . . . . . . . . . . . . . 20 . . . . . . 64 . . . . . . . . . . 125 27 . . . . . 197 162 Melee 9 | . . . . . 9 . . . . . . . . . . . . . . . . . . . . . . . . . . . . . . . . . . . Knockbacks 489 | . . . . . . . . . . . . . . . . . . . . . 1 . . . 1 . . 87 33 29 . 53 24 7 4 34 . 6 108 102 Impact 5 | . . . . . . . . . . . . . . . . . . . . . 1 . . . 1 . . . . 1 . 2 . . . . . . . . Kinetic 460 | . . . . . . . . . . . . . . . . . . . . . . . . . . . . 85 33 25 . 50 21 7 4 34 . 6 105 90 Secondary 24 | . . . . . . . . . . . . . . . . . . . . . . . . . . . . 2 . 3 . 1 3 . . . . . 3 12 Self-Inflicted Damage 41 | . . . . . . 9 . . . . . . . . . . . . . . . . . . . . . . . . . . . . . . . . . 32 Shots 2 | . . . . . . 1 . . . . . . . . . . . . . . . . . . . . . . . . . . . . . . . . . 1 Rammed 42 | . . 2 . 4 7 . . . . 3 . . 5 . . . 7 . . . 1 . . . 7 . . 1 . 1 . 2 . 2 . . . . . . Targets Rammed 48 | . . 2 . 4 10 . . . . 3 . . 6 . . . 7 . . . 1 . . . 8 . . 2 . 1 . 2 . 2 . . . . . . Kicked . | . . . . . . . . . . . . . . . . . . . . . . . . . . . . . . . . . . . . . . . . . Crushed 6 | . . . . . 3 . . . . . . . 1 . . . . . . . . . . . 1 . . 1 . . . . . . . . . . . . Highest Temperature 324 | . 13 2 . 263 92 305 . 170 321 187 184 . 41 28 186 116 285 254 52 176 104 211 . 70 195 174 324 234 225 24 18 68 . . 22 288 16 27 211 214 Average Temperature 41 | . 3 1 . 61 21 53 . 53 72 70 56 . 11 11 44 32 36 58 21 42 24 57 . 31 52 71 174 36 106 10 8 7 . . 12 92 6 8 9 13 Received Heat Transfer 1415 | . 24 . . 48 356 105 . 131 246 105 24 . 46 12 . 25 2 24 . 8 27 1 . 2 51 75 . 27 18 . . . . 21 . 5 . . 32 . Effects 5 | . . . . . . . . . 1 . . . . . . . . . . . . 2 . . . . . . . . . . . . . 2 . . . . Energy Bleed 1 | . . . . . . . . . 1 . . . . . . . . . . . . . . . . . . . . . . . . . . . . . . . Interference 4 | . . . . . . . . . . . . . . . . . . . . . . 2 . . . . . . . . . . . . . 2 . . . . Siege Activations 73 | . . . . . . . . . . . . . . 4 . 2 4 3 . 3 2 1 . . 3 2 . 3 5 1 . 5 1 2 2 9 . 1 14 6 Total Turns 1922 | . . . . . . . . . . . . . . 93 . 21 99 65 . 85 60 35 . . 58 14 . 105 57 8 . 85 3 24 125 202 . 19 458 306 Longest Duration 201 | . . . . . . . . . . . . . . 43 . 17 46 27 . 34 40 35 . . 23 9 . 38 22 8 . 36 3 20 118 65 . 19 137 201 Robots Corrupted 7 | . . . . . . . . . . . . . . . . . . . . . . . . . . . . . . . . 2 . . . . . . 2 3 Combat Hostiles 5 | . . . . . . . . . . . . . . . . . . . . . . . . . . . . . . . . 1 . . . . . . 1 3 Parts Fried . | . . . . . . . . . . . . . . . . . . . . . . . . . . . . . . . . . . . . . . . . . Impact Corruptions 12 | . . . . . 1 . . . . . . . . . . . . . . . . . . . . . . . . 1 . . . . . . . . 4 6 Robots Melted 2 | . . . . . . 2 . . . . . . . . . . . . . . . . . . . . . . . . . . . . . . . . . . Combat Hostiles 2 | . . . . . . 2 . . . . . . . . . . . . . . . . . . . . . . . . . . . . . . . . . . Parts Melted . | . . . . . . . . . . . . . . . . . . . . . . . . . . . . . . . . . . . . . . . . . Heat Transferred 3720 | . . . . . 592 2553 . . . . . . . . . . . . . . 575 . . . . . . . . . . . . . . . . . . . Parts Sabotaged 5 | . . . . . . . . . . . . . . 1 . . . . . . . . . . . . . . . . . . . . . . . . . 4 Parts Stolen . | . . . . . . . . . . . . . . . . . . . . . . . . . . . . . . . . . . . . . . . . . Parts Stripped . | . . . . . . . . . . . . . . . . . . . . . . . . . . . . . . . . . . . . . . . . . Power Chain Reactions . | . . . . . . . . . . . . . . . . . . . . . . . . . . . . . . . . . . . . . . . . . Latent Energy Used 129 | . . . . . . . . . . . . . . . . . . . . . . . . . . . . . . . . . . . . . . . . 129 LE Corruption 6 | . . . . . . . . . . . . . . . . . . . . . . . . . . . . . . . . . . . . . . . . 6 Alert | -11 -10 -10 -10 -9 -8 -8 -8 -8 -8 -8 -8 -8 -6 -6 -6 -6 -6 -6 -6 -6 -6 -6 -6 -5 -5 -5 -5 -5 -5 -4 -4 -4 -4 -3 -3 -3 -3 -2 -1 -1 ------- Run | Yrd Mat Min Exi Min Mat Gar Mat Gar Mat Sto Rec Scr Fac Gar Fac Gar Fac Gar Fac Gar Fac Gar Fac Fac Ext Cet Arc Hub Gar Fac Was Fac Gar Res Qua Sec Gar Res Acc Com Peak Influence 4378 | . 60 93 . 140 285 1563 558 1922 957 473 157 . 340 2158 1273 1908 977 1697 815 2419 1201 2055 855 584 558 178 358 993 2225 1792 1108 1409 1502 977 444 699 840 752 3847 4378 Initial 1884 | . . 16 . . . 44 558 275 686 . . . . 36 841 665 744 60 661 443 943 497 801 307 205 27 . 69 473 867 1100 598 642 634 187 46 269 354 241 1884 Average 751 | . 15 15 . 48 89 739 558 1210 416 222 39 . 98 1154 1048 1345 416 914 707 1637 807 1485 813 441 224 111 163 518 1386 1286 1103 910 1038 736 268 411 593 538 1389 2786 Maximum Alert Level 5 | . . . . . 1 4 2 5 3 2 . . 1 5 4 5 3 5 3 5 4 5 3 2 2 . 1 3 5 5 4 4 4 3 2 2 3 3 5 5 Low Security (%) 26 | 100 100 100 . 100 85 17 . . 37 52 100 . 82 5 . . 36 14 . . . . . . 40 100 43 16 . . . . . . 19 13 . . . . Level 1 10 | . . . . . 14 5 . 5 8 32 . . 17 12 . . 18 10 . . . . . 41 45 . 56 18 . . . . . . 70 33 26 16 5 . Level 2 14 | . . . . . . 32 100 8 23 15 . . . 8 . 3 16 13 62 4 26 8 . 58 14 . . 38 13 . . 18 4 20 10 53 26 55 13 . Level 3 22 | . . . . . . 20 . 28 30 . . . . 24 52 27 28 20 37 9 66 10 100 . . . . 27 14 32 . 54 50 79 . . 47 27 23 . Level 4 12 | . . . . . . 24 . 34 . . . . . 17 47 32 . 36 . 27 6 34 . . . . . . 35 47 100 26 44 . . . . . 31 . Level 5 11 | . . . . . . . . 23 . . . . . 31 . 36 . 4 . 58 . 46 . . . . . . 37 11 . . . . . . . . 1 80 High Security 2 | . . . . . . . . . . . . . . . . . . . . . . . . . . . . . . 7 . . . . . . . . 24 19 Max Security . | . . . . . . . . . . . . . . . . . . . . . . . . . . . . . . . . . . . . . . . . . Sterilizations 1 | . . . . . . . . . . . . . . . . . . . . . . . . . . . . . . . . . . . . . . . 1 . Squads Dispatched 197 | . . 1 . . 4 . . . 3 2 . . 9 . 16 . 12 . 3 . 23 . . . 2 . . 14 . 7 . 17 . 6 3 12 . 1 35 27 Investigation 26 | . . 1 . . 3 . . . 1 1 . . 1 . 2 . 2 . 2 . 3 . . . 1 . . 2 . 1 . . . 3 . . . . . 3 Extermination 39 | . . . . . . . . . . . . . 2 . 3 . 5 . 1 . 7 . . . . . . 3 . 1 . 5 . . 2 3 . . 4 3 Reinforcement 29 | . . . . . 1 . . . 1 1 . . . . 3 . 1 . . . 3 . . . 1 . . 2 . 1 . 4 . 3 1 3 . . 4 . Assault 60 | . . . . . . . . . 1 . . . . . 1 . 3 . . . 4 . . . . . . 2 . 2 . 5 . . . 2 . 1 18 21 Garrison 33 | . . . . . . . . . . . . . 6 . 7 . 1 . . . 6 . . . . . . 5 . 2 . 3 . . . 1 . . 2 . Intercept 10 | . . . . . . . . . . . . . . . . . . . . . . . . . . . . . . . . . . . . 3 . . 7 . Searches Triggered . | . . . . . . . . . . . . . . . . . . . . . . . . . . . . . . . . . . . . . . . . . Construction Impeded 6 | . . . . . . . . . . . . . . . 1 . . . . . . . . . . . . . . . . 1 . . 1 . . . 3 . Haulers Reinforced 9 | . . . . . . . . . . . . . . . 2 . . . . . 3 . . . . . . . . . . 2 . 1 . . . . 1 . Active Scanning Responses . | . . . . . . . . . . . . . . . . . . . . . . . . . . . . . . . . . . . . . . . . . Cargo Convoy Interrupts . | . . . . . . . . . . . . . . . . . . . . . . . . . . . . . . . . . . . . . . . . . Stealth | -11 -10 -10 -10 -9 -8 -8 -8 -8 -8 -8 -8 -8 -6 -6 -6 -6 -6 -6 -6 -6 -6 -6 -6 -5 -5 -5 -5 -5 -5 -4 -4 -4 -4 -3 -3 -3 -3 -2 -1 -1 --------- Run | Yrd Mat Min Exi Min Mat Gar Mat Gar Mat Sto Rec Scr Fac Gar Fac Gar Fac Gar Fac Gar Fac Gar Fac Fac Ext Cet Arc Hub Gar Fac Was Fac Gar Res Qua Sec Gar Res Acc Com Distress Signals 70 | . . . . 1 3 . . . 1 4 . . . . . . 2 . . . 3 . . 3 . 3 . 2 . 1 . 4 . 8 . 1 . 1 3 30 Communications Jammed . | . . . . . . . . . . . . . . . . . . . . . . . . . . . . . . . . . . . . . . . . . Distress Signals . | . . . . . . . . . . . . . . . . . . . . . . . . . . . . . . . . . . . . . . . . . Times Spotted 1495 | . 6 2 . 6 43 35 . 41 38 31 10 . 34 61 48 32 65 39 3 50 88 39 2 1 29 10 16 78 48 42 . 88 26 29 9 67 23 15 185 156 Peak Tracking Total 23 | . 2 1 . 3 3 5 . 5 4 5 4 . 3 11 6 5 5 6 2 9 5 14 1 1 4 5 16 6 7 8 . 7 12 5 3 7 10 5 23 22 Tactical Retreats 36 | . . . . . . . . . . 2 . . 1 1 . 1 1 1 . 3 2 2 . . . . . 2 . 1 . . 1 . . 1 5 . 2 10 Traps | -11 -10 -10 -10 -9 -8 -8 -8 -8 -8 -8 -8 -8 -6 -6 -6 -6 -6 -6 -6 -6 -6 -6 -6 -5 -5 -5 -5 -5 -5 -4 -4 -4 -4 -3 -3 -3 -3 -2 -1 -1 ------- Run | Yrd Mat Min Exi Min Mat Gar Mat Gar Mat Sto Rec Scr Fac Gar Fac Gar Fac Gar Fac Gar Fac Gar Fac Fac Ext Cet Arc Hub Gar Fac Was Fac Gar Res Qua Sec Gar Res Acc Com Traps Triggered 33 | . 1 . . . . . . . 1 . . . . 3 1 3 3 3 . 3 3 2 1 . . . . . . 1 . 1 . 1 . 1 . . 3 2 Indirectly . | . . . . . . . . . . . . . . . . . . . . . . . . . . . . . . . . . . . . . . . . . Trap Hack Attempts 436 | . 121 . . . 63 . . . . 21 . . 39 11 . . 6 . . . 75 . . . 45 . . . . . . 55 . . . . . . . . Triggered 2 | . . . . . . . . . . . . . . . . . . . . . 1 . . . . . . . . . . 1 . . . . . . . . Disarmed 21 | . 1 . . . 2 . . . . 10 . . . . . . . . . . . . . . . . . 8 . . . . . . . . . . . . Reprogrammed 85 | . 18 . . . 12 . . . 6 3 . . 5 1 . . 3 . . . 19 . . . 4 . . . . . . 14 . . . . . . . . Reused 7 | . 1 . . . 3 . . . 1 . . . . . . . . . . . 1 . . . . . . . . . . 1 . . . . . . . . Traps Extracted . | . . . . . . . . . . . . . . . . . . . . . . . . . . . . . . . . . . . . . . . . . Installed . | . . . . . . . . . . . . . . . . . . . . . . . . . . . . . . . . . . . . . . . . . Triggered 9 | . 1 . . 1 3 . . . 1 . . . . . 1 . . . . . 1 . . . . . . . . . . 1 . . . . . . . . Objects Rigged 41 | . . . . . . . . . . . . . . . . . . . . . 32 . . . . . . . . . . 9 . . . . . . . . Exploded 4 | . . . . . . . . . . . . . . . . . . . . . 4 . . . . . . . . . . . . . . . . . . . Machines | -11 -10 -10 -10 -9 -8 -8 -8 -8 -8 -8 -8 -8 -6 -6 -6 -6 -6 -6 -6 -6 -6 -6 -6 -5 -5 -5 -5 -5 -5 -4 -4 -4 -4 -3 -3 -3 -3 -2 -1 -1 ---------- Run | Yrd Mat Min Exi Min Mat Gar Mat Gar Mat Sto Rec Scr Fac Gar Fac Gar Fac Gar Fac Gar Fac Gar Fac Fac Ext Cet Arc Hub Gar Fac Was Fac Gar Res Qua Sec Gar Res Acc Com Machines Disabled 245 | . . . . . 1 10 . 10 . 2 . . 3 11 13 8 5 10 . 9 51 9 . 1 4 1 1 12 9 9 . 32 2 2 1 11 . . 9 9 Max in Single Turn 12 | . . . . . 1 1 . 1 . 2 . . 1 1 1 2 2 2 . 2 12 1 . . 1 1 . 1 1 3 . 4 1 1 1 2 . . 1 2 Garrison Access 8 | . . . . . . . . . . . . . . . . . 1 . . . . . . . . . . . . . . 1 . 2 . . . 1 3 . Garrison Relay 43 | . . . . . . 4 . 7 . . . . . 6 . 5 . 5 . 5 . 6 . . . . . . 5 . . . . . . . . . . . Phase Generator 8 | . . . . . . 1 . 1 . . . . . 1 . 1 . 1 . 1 . 1 . . . . . . . . . . . . . . . . . 1 Network Hub 4 | . . . . . . . . . . . . . . . . . . . . . . . . . . . . 4 . . . . . . . . . . . . Machines Repaired . | . . . . . . . . . . . . . . . . . . . . . . . . . . . . . . . . . . . . . . . . . Machines Dismantled 22 | . . . . . . 5 . 9 . . . . . 1 . . . . . . . 1 . . 1 1 . 3 . . . . . . . . . . . 1 Machines Sabotaged . | . . . . . . . . . . . . . . . . . . . . . . . . . . . . . . . . . . . . . . . . . Overloaded Fab Kills . | . . . . . . . . . . . . . . . . . . . . . . . . . . . . . . . . . . . . . . . . . Hacking | -11 -10 -10 -10 -9 -8 -8 -8 -8 -8 -8 -8 -8 -6 -6 -6 -6 -6 -6 -6 -6 -6 -6 -6 -5 -5 -5 -5 -5 -5 -4 -4 -4 -4 -3 -3 -3 -3 -2 -1 -1 --------- Run | Yrd Mat Min Exi Min Mat Gar Mat Gar Mat Sto Rec Scr Fac Gar Fac Gar Fac Gar Fac Gar Fac Gar Fac Fac Ext Cet Arc Hub Gar Fac Was Fac Gar Res Qua Sec Gar Res Acc Com Machines Accessed 195 | . 6 1 1 . 14 3 1 5 9 9 6 2 8 2 9 4 16 4 3 4 19 4 1 2 7 . 1 10 1 3 . 10 1 3 9 7 1 . 6 3 Terminals 172 | . 6 1 . . 11 3 . 5 9 9 6 . 7 2 8 4 14 4 2 4 18 4 1 2 7 . . 9 1 3 . 8 1 2 8 6 1 . 3 3 Fabricators . | . . . . . . . . . . . . . . . . . . . . . . . . . . . . . . . . . . . . . . . . . Repair Stations . | . . . . . . . . . . . . . . . . . . . . . . . . . . . . . . . . . . . . . . . . . Recycling Units . | . . . . . . . . . . . . . . . . . . . . . . . . . . . . . . . . . . . . . . . . . Scanalyzers 3 | . . . . . 2 . . . . . . . . . . . . . . . . . . . . . . . . . . . . . 1 . . . . . Garrison Access 16 | . . . . . 1 . 1 . . . . . 1 . 1 . 2 . 1 . 1 . . . . . . 1 . . . 2 . 1 . 1 . . 3 . Total Hacks 727 | . 17 4 1 . 60 6 2 16 38 26 14 14 26 5 26 12 40 12 10 12 65 11 4 4 11 . 25 48 4 23 . 67 5 18 56 17 6 . 13 9 Successful 463 | . 14 3 1 . 51 2 1 8 32 18 9 14 14 4 11 10 24 5 4 6 43 7 4 2 7 . 25 35 2 13 . 35 4 5 33 9 1 . 6 1 Failed 264 | . 3 1 . . 9 4 1 8 6 8 5 . 12 1 15 2 16 7 6 6 22 4 . 2 4 . . 13 2 10 . 32 1 13 23 8 5 . 7 8 Catastrophic 41 | . . . . . . . . 1 . 1 . . 3 . 4 1 5 1 . 2 3 1 . 2 1 . . 1 . 2 . 5 . 1 2 . 1 . 2 2 Database Lockouts . | . . . . . . . . . . . . . . . . . . . . . . . . . . . . . . . . . . . . . . . . . Manual 534 | . 15 4 . . 51 4 . 11 29 23 13 . 20 5 23 9 39 7 5 9 54 7 2 3 6 1 . 42 4 20 . 51 5 12 37 9 6 . 3 5 Terminals 647 | . 17 4 . . 56 6 . 16 38 26 14 . 24 5 23 12 38 12 9 12 63 11 4 4 11 . . 47 4 23 . 61 5 15 51 15 6 . 6 9 Fabricators . | . . . . . . . . . . . . . . . . . . . . . . . . . . . . . . . . . . . . . . . . . Repair Stations . | . . . . . . . . . . . . . . . . . . . . . . . . . . . . . . . . . . . . . . . . . Recycling Units . | . . . . . . . . . . . . . . . . . . . . . . . . . . . . . . . . . . . . . . . . . Scanalyzers 7 | . . . . . 2 . . . . . . . . . . . . . . . . . . . . . . . . . . . . . 5 . . . . . Garrison Access 33 | . . . . . 2 . 2 . . . . . 2 . 3 . 2 . 1 . 2 . . . . . . 1 . . . 6 . 3 . 2 . . 7 . Terminal Hacks 253 | . 7 3 1 . 32 2 . 4 18 9 2 14 5 1 1 6 8 3 1 4 15 4 2 2 4 . 25 17 1 6 . 19 3 3 23 5 1 . 1 1 Record 42 | . . . 1 . . . . . . . . 14 . . . . . . . . . . . . . . 25 . . . . . . . 2 . . . . . Robot Analysis 61 | . 4 . . . 21 . . . 2 . 1 . 3 . 1 . 6 . . . . . . 1 . . . 8 . 3 . 8 . 1 2 . . . . . Prototype ID Bank 12 | . . 1 . . 1 . . . . . . . 1 . . . . . . . . . . . . . . . . . . . . . 9 . . . . . Open Door 15 | . . . . . . 1 . 1 . 3 . . . . . 1 . . . . . 1 . 1 4 . . . . . . . . . . 3 . . . . Branch Access Points 3 | . . . . . . . . . . . . . . . . . . . . . . . . . . . . . . . . 1 . 1 . . . . 1 . Machine Index 3 | . . . . . . . . . . . . . . . . . . . . . 1 . . . . . . 1 . . . . . . 1 . . . . . Terminal Index 6 | . . . . . 1 . . . 1 1 . . . . . . . . . . 1 . . . . . . . . . . 1 . . 1 . . . . . Garrison Index 2 | . . . . . . . . . 1 . . . . . . . . . . . . . . . . . . . . . . 1 . . . . . . . . Unreport Threat 2 | . . . . . . . . . . . . . . . . . . . . . . . . . . . . . . . . 1 . . . 1 . . . . Locate Traps 28 | . 3 . . . 3 . . . 4 1 . . . . . . 2 . 1 . 5 . 1 . . . . 2 . 1 . 3 . 1 1 . . . . . Disarm Traps 4 | . . . . . . . . . . 2 . . . . . . . . . . . . . . . . . 2 . . . . . . . . . . . . Reprogram Traps 4 | . . . . . 1 . . . 1 . . . . . . . . . . . 2 . . . . . . . . . . . . . . . . . . . Dispatch Records 6 | . . 1 . . 2 . . . 1 . . . . . . . . . . . . . . . . . . . . . . 1 . . 1 . . . . . Security Status 1 | . . . . . . . . . . . . . . . . . . . . . . . . . . . . . . . . . . . 1 . . . . . Patrol Status 2 | . . 1 . . . . . . 1 . . . . . . . . . . . . . . . . . . . . . . . . . . . . . . . Reinforcement Status 1 | . . . . . . . . . 1 . . . . . . . . . . . . . . . . . . . . . . . . . . . . . . . Zone Layout 35 | . . . . . 3 . . . 6 2 1 . 1 . . . . . . . 6 . 1 . . . . 4 . 2 . 3 . . 5 1 . . . . Garrison Registry 9 | . . . . . . . . 1 . . . . . 1 . 1 . 1 . 1 . 1 . . . . . . 1 . . . 1 . . . 1 . . . Patrol Navigation 9 | . . . . . . 1 . 1 . . . . . . . 2 . 1 . 2 . 1 . . . . . . . . . . 1 . . . . . . . Security Stations 7 | . . . . . . . . 1 . . . . . . . 2 . 1 . 1 . 1 . . . . . . . . . . 1 . . . . . . . Disengage Seal 1 | . . . . . . . . . . . . . . . . . . . . . . . . . . . . . . . . . . . . . . . . 1 Fabricator Hacks . | . . . . . . . . . . . . . . . . . . . . . . . . . . . . . . . . . . . . . . . . . Repair Station Hacks . | . . . . . . . . . . . . . . . . . . . . . . . . . . . . . . . . . . . . . . . . . Recycling Unit Hacks . | . . . . . . . . . . . . . . . . . . . . . . . . . . . . . . . . . . . . . . . . . Scanalyzer . | . . . . . . . . . . . . . . . . . . . . . . . . . . . . . . . . . . . . . . . . . Garrison Access Hacks 16 | . . . . . 1 . 1 . . . . . 1 . 1 . 2 . 1 . 1 . . . . . . 1 . . . 2 . 1 . 1 . . 3 . Unlock Access 10 | . . . . . 1 . 1 . . . . . 1 . 1 . 1 . 1 . 1 . . . . . . 1 . . . 1 . . . 1 . . . . Seal Access 6 | . . . . . . . . . . . . . . . . . 1 . . . . . . . . . . . . . . 1 . 1 . . . . 3 . Unauthorized Hacks 194 | . 7 . . . 18 . . 4 14 9 7 . 8 3 9 4 14 2 2 2 27 3 2 . 3 . . 17 1 7 . 14 1 1 10 3 . . 2 . Terminals 189 | . 7 . . . 15 . . 4 14 9 7 . 8 3 9 4 14 2 2 2 27 3 2 . 3 . . 17 1 7 . 13 1 1 9 3 . . 2 . Track 13 | . . . . . . . . 1 1 1 . . . . . 1 . . . . . . . . . . . 6 . 1 . 1 . . 1 . . . . . Assimilate 11 | . . . . . 2 . . . 1 . . . . . 1 . . . . . 4 . . . . . . 1 . . . 1 . . . . . . 1 . Botnet 43 | . 2 . . . 2 . . 2 2 2 2 . 2 2 2 1 2 1 2 1 2 2 1 . 1 . . 2 . 2 . 3 . 1 2 1 . . 1 . Detonate 4 | . . . . . . . . . . . . . . . . . . . . . 3 . . . . . . . . . . 1 . . . . . . . . Disrupt 5 | . . . . . . . . . . . . . . . . . 1 . . . . . . . . . . 2 . 1 . 1 . . . . . . . . Operators 10 | . . . . . 1 . . . 1 1 . . . . 1 . 1 . . . 1 . . . . . . 1 . 1 . 1 . . 1 . . . . . Skim 94 | . 5 . . . 10 . . . 9 5 5 . 6 . 5 . 10 . . . 17 . 1 . 2 . . 5 . 2 . 5 . . 5 2 . . . . Override 9 | . . . . . . . . 1 . . . . . 1 . 2 . 1 . 1 . 1 . . . . . . 1 . . . 1 . . . . . . . Fabricators . | . . . . . . . . . . . . . . . . . . . . . . . . . . . . . . . . . . . . . . . . . Repair Stations . | . . . . . . . . . . . . . . . . . . . . . . . . . . . . . . . . . . . . . . . . . Recycling Units . | . . . . . . . . . . . . . . . . . . . . . . . . . . . . . . . . . . . . . . . . . Scanalyzers 3 | . . . . . 2 . . . . . . . . . . . . . . . . . . . . . . . . . . . . . 1 . . . . . Researchers 1 | . . . . . . . . . . . . . . . . . . . . . . . . . . . . . . . . . . . 1 . . . . . Extract 2 | . . . . . 2 . . . . . . . . . . . . . . . . . . . . . . . . . . . . . . . . . . . Garrison Access 2 | . . . . . 1 . . . . . . . . . . . . . . . . . . . . . . . . . . 1 . . . . . . . . Watchers 2 | . . . . . 1 . . . . . . . . . . . . . . . . . . . . . . . . . . 1 . . . . . . . . Data Cores Recovered 11 | . . . . . . . . . . . . . . . 3 . 2 . . . 2 . . . . . . 1 . . . . . . 1 . . . 2 . Used 4 | . . . . . . . . . . . . . . . 1 . 1 . . . 2 . . . . . . . . . . . . . . . . . . . Hacking Detections 160 | . 6 1 . . 9 3 1 5 7 8 4 . 8 1 8 3 15 3 3 4 19 3 1 1 5 . . 9 1 3 . 10 . 3 7 2 1 . 4 2 Full Trace Events 30 | . . 1 . . 1 2 . 3 1 1 . . 1 . 1 . 2 2 2 3 2 1 . . 1 . . 2 . 1 . . . 1 . . . . . 2 Feedback Events 6 | . . . . . . . . 1 1 . . . . . 1 . 1 . 1 . . . . . . . . . . 1 . . . . . . . . . . Corruption 5 | . . . . . . . . 1 1 . . . . . 1 . 1 . . . . . . . . . . . . 1 . . . . . . . . . . Hackware Fried 1 | . . . . . . . . . . . . . . . . . . . 1 . . . . . . . . . . . . . . . . . . . . . Feedback Blocked . | . . . . . . . . . . . . . . . . . . . . . . . . . . . . . . . . . . . . . . . . . Robot Schematics Acquired . | . . . . . . . . . . . . . . . . . . . . . . . . . . . . . . . . . . . . . . . . . Robots Built . | . . . . . . . . . . . . . . . . . . . . . . . . . . . . . . . . . . . . . . . . . Authchips . | . . . . . . . . . . . . . . . . . . . . . . . . . . . . . . . . . . . . . . . . . Time . | . . . . . . . . . . . . . . . . . . . . . . . . . . . . . . . . . . . . . . . . . Total Robot Build Rating . | . . . . . . . . . . . . . . . . . . . . . . . . . . . . . . . . . . . . . . . . . Part Schematics Acquired 5 | . . . . . 3 . . . . . . . . . . . . . . . . . . . . . . . . . . . . . . 2 . . . . Parts Built . | . . . . . . . . . . . . . . . . . . . . . . . . . . . . . . . . . . . . . . . . . Authchips . | . . . . . . . . . . . . . . . . . . . . . . . . . . . . . . . . . . . . . . . . . Time . | . . . . . . . . . . . . . . . . . . . . . . . . . . . . . . . . . . . . . . . . . Total Part Build Rating . | . . . . . . . . . . . . . . . . . . . . . . . . . . . . . . . . . . . . . . . . . Parts Repaired . | . . . . . . . . . . . . . . . . . . . . . . . . . . . . . . . . . . . . . . . . . Time . | . . . . . . . . . . . . . . . . . . . . . . . . . . . . . . . . . . . . . . . . . Parts Recycled . | . . . . . . . . . . . . . . . . . . . . . . . . . . . . . . . . . . . . . . . . . Recycled Matter . | . . . . . . . . . . . . . . . . . . . . . . . . . . . . . . . . . . . . . . . . . Retrieved Matter . | . . . . . . . . . . . . . . . . . . . . . . . . . . . . . . . . . . . . . . . . . Retrieved Components . | . . . . . . . . . . . . . . . . . . . . . . . . . . . . . . . . . . . . . . . . . Parts Scanalyzed . | . . . . . . . . . . . . . . . . . . . . . . . . . . . . . . . . . . . . . . . . . Part Schematics Acquired . | . . . . . . . . . . . . . . . . . . . . . . . . . . . . . . . . . . . . . . . . . Parts Damaged . | . . . . . . . . . . . . . . . . . . . . . . . . . . . . . . . . . . . . . . . . . Bothacking | -11 -10 -10 -10 -9 -8 -8 -8 -8 -8 -8 -8 -8 -6 -6 -6 -6 -6 -6 -6 -6 -6 -6 -6 -5 -5 -5 -5 -5 -5 -4 -4 -4 -4 -3 -3 -3 -3 -2 -1 -1 ------------ Run | Yrd Mat Min Exi Min Mat Gar Mat Gar Mat Sto Rec Scr Fac Gar Fac Gar Fac Gar Fac Gar Fac Gar Fac Fac Ext Cet Arc Hub Gar Fac Was Fac Gar Res Qua Sec Gar Res Acc Com Used RIF Installer . | . . . . . . . . . . . . . . . . . . . . . . . . . . . . . . . . . . . . . . . . . Robots Hacked 13 | . 1 . . . . . . . . . . . . 1 . . . . . . . . . . . 2 3 1 . . . 1 . . 1 . . . 1 2 Non-combat 2 | . 1 . . . . . . . . . . . . . . . . . . . . . . . . . . . . . . 1 . . . . . . . . Combat 11 | . . . . . . . . . . . . . . 1 . . . . . . . . . . . 2 3 1 . . . . . . 1 . . . 1 2 Robot Hacks Applied 14 | . 1 . . . . . . . . . . . . 1 . . . . . . . . . . . 2 3 1 . . . 2 . . 1 . . . 1 2 parse_system 13 | . 1 . . . . . . . . . . . . 1 . . . . . . . . . . . 2 3 1 . . . 1 . . 1 . . . 1 2 check_alert 1 | . . . . . . . . . . . . . . . . . . . . . . . . . . . . . . . . 1 . . . . . . . . Manual 1 | . . . . . . . . . . . . . . . . . . . . . . . . . . . . . . . . . . . . . . . . 1 Relay Couplers Released 192 | . . . . . . 15 . 26 . . . . . 22 . 21 . 22 . 22 7 29 . . . . . . 22 . . . . 2 . 3 . 1 . . Machine Destruction 175 | . . . . . . 15 . 26 . . . . . 22 . 21 . 22 . 19 . 25 . . . . . . 22 . . . . 2 . . . 1 . . Programmers 17 | . . . . . . . . . . . . . . . . . . . . 3 7 4 . . . . . . . . . . . . . 3 . . . . Fabnet Peak Effective % . | . . . . . . . . . . . . . . . . . . . . . . . . . . . . . . . . . . . . . . . . . Robots Rewired 52 | . . . . . . 3 . . . . 33 . . 4 . 1 . 1 . 8 . 2 . . . . . . . . . . . . . . . . . . Allies Hacked 1 | . . . . . . . . . . . . . . . . . . . . . 1 . . . . . . . . . . . . . . . . . . . Hacks Repelled . | . . . . . . . . . . . . . . . . . . . . . . . . . . . . . . . . . . . . . . . . . Allies | -11 -10 -10 -10 -9 -8 -8 -8 -8 -8 -8 -8 -8 -6 -6 -6 -6 -6 -6 -6 -6 -6 -6 -6 -5 -5 -5 -5 -5 -5 -4 -4 -4 -4 -3 -3 -3 -3 -2 -1 -1 -------- Run | Yrd Mat Min Exi Min Mat Gar Mat Gar Mat Sto Rec Scr Fac Gar Fac Gar Fac Gar Fac Gar Fac Gar Fac Fac Ext Cet Arc Hub Gar Fac Was Fac Gar Res Qua Sec Gar Res Acc Com Total Allies 97 | . . . . . 1 5 . 2 1 . 33 . . 6 . 3 . 2 . 8 6 4 . . 8 5 . . . 12 . 1 . . . . . . . . Largest Group 33 | . . . . . 1 6 6 6 1 1 33 21 21 6 6 3 1 1 . 8 8 4 4 3 8 9 9 . . 8 . 1 . . . . . . . . Highest-Rated Group 702 | . . . . . 10 148 148 148 10 10 471 360 360 288 288 148 148 116 . 164 164 290 290 238 344 702 702 . . 326 . 26 . . . . . . . . Highest-Rated Ally 159 | . . . . . 10 39 39 39 10 10 34 34 34 62 62 148 148 116 . 29 31 99 99 99 159 159 153 . . 46 . 26 . . . . . . . . Total Orders 106 | . . . . . . 10 . . . 1 10 . 6 . . . 1 1 . . 1 . . 7 5 . . . 6 8 . 20 . 5 . . . 11 10 4 STAY 17 | . . . . . . 5 . . . 1 10 . . . . . 1 . . . . . . . . . . . . . . . . . . . . . . . ROAM 12 | . . . . . . . . . . . . . 3 . . . . 1 . . 1 . . 2 1 . . . . . . . . 1 . . . 1 2 . FOLLOW 7 | . . . . . . 5 . . . . . . 1 . . . . . . . . . . . . . . . . . . 1 . . . . . . . . GUARD 1 | . . . . . . . . . . . . . 1 . . . . . . . . . . . . . . . . . . . . . . . . . . . AID 1 | . . . . . . . . . . . . . 1 . . . . . . . . . . . . . . . . . . . . . . . . . . . EXPLORE 31 | . . . . . . . . . . . . . . . . . . . . . . . . 3 3 . . . 4 4 . 6 . 3 . . . 7 . 1 RETURN 37 | . . . . . . . . . . . . . . . . . . . . . . . . 2 1 . . . 2 4 . 13 . 1 . . . 3 8 3 Ally Attacks 652 | . . . . . . 23 . 73 . . 7 . 32 15 102 36 54 16 . . 129 5 4 38 3 49 35 . . 31 . . . . . . . . . . Total Damage 18753 | . . . . . . 241 . 1529 . . 241 . 889 443 3973 1290 1654 592 . . 2410 38 124 1324 72 1266 1839 . . 828 . . . . . . . . . . Kills 146 | . . . . . . 4 . 14 . . 3 . 10 3 35 9 11 7 . . 18 1 1 10 1 5 11 . . 3 . . . . . . . . . . Allies Corrupted 3 | . . . . . . . . . . . . . . . . . . . . . . . . 1 . . . . . 2 . . . . . . . . . . Allies Melted 1 | . . . . . . . . . . . . . . . . . . . . . 1 . . . . . . . . . . . . . . . . . . . Intel | -11 -10 -10 -10 -9 -8 -8 -8 -8 -8 -8 -8 -8 -6 -6 -6 -6 -6 -6 -6 -6 -6 -6 -6 -5 -5 -5 -5 -5 -5 -4 -4 -4 -4 -3 -3 -3 -3 -2 -1 -1 ------- Run | Yrd Mat Min Exi Min Mat Gar Mat Gar Mat Sto Rec Scr Fac Gar Fac Gar Fac Gar Fac Gar Fac Gar Fac Fac Ext Cet Arc Hub Gar Fac Was Fac Gar Res Qua Sec Gar Res Acc Com Robot Analysis Total 60 | . 4 . . . 20 . . . 2 . 1 . 3 . 1 . 6 . . . . . . 1 . . . 8 . 3 . 8 . 1 2 . . . . . Derelict Logs Recovered . | . . . . . . . . . . . . . . . . . . . . . . . . . . . . . . . . . . . . . . . . . Drone Launches 91 | . . . . . . . . . . . . . . . . . . . . . . . . 4 3 . . . 4 6 . 24 . 2 . . . 6 36 6 Drone Recoveries 83 | . . . . . . . . . . . . . . . . . . . . . . . . 4 2 . . . 4 6 . 21 . 1 . . . 6 34 5 Exploration | -11 -10 -10 -10 -9 -8 -8 -8 -8 -8 -8 -8 -8 -6 -6 -6 -6 -6 -6 -6 -6 -6 -6 -6 -5 -5 -5 -5 -5 -5 -4 -4 -4 -4 -3 -3 -3 -3 -2 -1 -1 ------------- Run | Yrd Mat Min Exi Min Mat Gar Mat Gar Mat Sto Rec Scr Fac Gar Fac Gar Fac Gar Fac Gar Fac Gar Fac Fac Ext Cet Arc Hub Gar Fac Was Fac Gar Res Qua Sec Gar Res Acc Com Turns Passed 55732 | 34 1496 840 210 640 2665 2073 82 1417 2928 1214 1743 1123 1917 1578 1674 1104 4206 1742 356 1612 3556 1416 327 183 1874 485 112 1762 1538 558 182 2623 444 923 911 1641 201 426 2553 3363 Spaces Moved 27028 | 22 742 517 132 382 1451 1091 32 700 1455 562 876 687 852 733 960 573 2278 930 204 797 1597 744 201 101 958 202 55 812 711 220 100 1017 186 503 452 660 84 138 909 1402 Core . | . . . . . . . . . . . . . . . . . . . . . . . . . . . . . . . . . . . . . . . . . Treads 27028 | 22 742 517 132 382 1451 1091 32 700 1455 562 876 687 852 733 960 573 2278 930 204 797 1597 744 201 101 958 202 55 812 711 220 100 1017 186 503 452 660 84 138 909 1402 Legs . | . . . . . . . . . . . . . . . . . . . . . . . . . . . . . . . . . . . . . . . . . Wheels . | . . . . . . . . . . . . . . . . . . . . . . . . . . . . . . . . . . . . . . . . . Hover . | . . . . . . . . . . . . . . . . . . . . . . . . . . . . . . . . . . . . . . . . . Flight . | . . . . . . . . . . . . . . . . . . . . . . . . . . . . . . . . . . . . . . . . . Fastest Speed 152 | 160 160 160 160 152 152 152 155 152 152 155 160 160 160 160 160 160 160 160 160 160 160 160 160 160 160 160 160 160 160 160 160 160 170 160 160 160 160 160 160 160 Average Speed 158 | 160 160 160 160 153 152 152 155 152 152 158 160 160 160 160 160 160 160 160 160 160 160 160 160 160 160 160 160 160 160 160 160 169 170 160 160 160 160 160 160 160 Slowest Speed 250 | 160 160 160 160 160 152 155 155 152 152 160 160 160 160 160 160 160 160 160 160 160 160 160 160 160 160 160 160 160 160 160 160 180 170 170 160 160 160 160 160 250 Overloaded Moves . | . . . . . . . . . . . . . . . . . . . . . . . . . . . . . . . . . . . . . . . . . Propulsion Burnouts . | . . . . . . . . . . . . . . . . . . . . . . . . . . . . . . . . . . . . . . . . . Robots Hopped . | . . . . . . . . . . . . . . . . . . . . . . . . . . . . . . . . . . . . . . . . . Cave-ins Triggered 1 | . . . . 1 . . . . . . . . . . . . . . . . . . . . . . . . . . . . . . . . . . . . Exploration Rate (%) 59 | 4 95 92 51 76 91 98 5 84 97 89 97 54 25 92 28 75 64 88 8 84 51 90 9 6 98 74 78 78 85 12 82 46 43 24 59 64 29 18 32 60 Regions Visited 40 Branch Regions 13 Pre-discovered Areas 27 | . 1 . 1 1 2 . . . 1 2 2 . 2 . . . 4 . . . 6 . . . . . . 2 . . . 2 . . 1 . . . . . Known Exits Taken 28 | 1 1 1 1 1 1 . 1 . 1 1 1 1 1 . 1 . 1 . 1 . 1 . 1 1 1 1 1 1 . . . 1 . 1 1 1 . 1 1 . Unknown Exits Taken . | . . . . . . . . . . . . . . . . . . . . . . . . . . . . . . . . . . . . . . . . . Scrap Searched . | . . . . . . . . . . . . . . . . . . . . . . . . . . . . . . . . . . . . . . . . . Spaces Dug 85 | . . . . . . . . . . . . . . . . . . . . . . . . . . . . 2 . 5 . 2 . . 2 . . . 64 10 Terrain Destroyed 2150 | . . . . . 11 8 . . . 22 . . . 73 26 72 17 71 11 68 92 . . 1 18 6 6 137 18 94 6 132 144 20 23 34 . 6 622 412 Melee . | . . . . . . . . . . . . . . . . . . . . . . . . . . . . . . . . . . . . . . . . . Projectile 656 | . . . . . 2 . . . . . . . . 2 26 . 17 . 11 . 3 . . 1 18 6 6 137 18 78 6 91 6 20 23 34 . 6 92 53 AOE 1494 | . . . . . 9 8 . . . 22 . . . 71 . 72 . 71 . 68 89 . . . . . . . . 16 . 41 138 . . . . . 530 359 Terrain Rammed . | . . . . . . . . . . . . . . . . . . . . . . . . . . . . . . . . . . . . . . . . . Walls Destroyed . | . . . . . . . . . . . . . . . . . . . . . . . . . . . . . . . . . . . . . . . . . Machines Disabled . | . . . . . . . . . . . . . . . . . . . . . . . . . . . . . . . . . . . . . . . . . Actions | -11 -10 -10 -10 -9 -8 -8 -8 -8 -8 -8 -8 -8 -6 -6 -6 -6 -6 -6 -6 -6 -6 -6 -6 -5 -5 -5 -5 -5 -5 -4 -4 -4 -4 -3 -3 -3 -3 -2 -1 -1 --------- Run | Yrd Mat Min Exi Min Mat Gar Mat Gar Mat Sto Rec Scr Fac Gar Fac Gar Fac Gar Fac Gar Fac Gar Fac Fac Ext Cet Arc Hub Gar Fac Was Fac Gar Res Qua Sec Gar Res Acc Com Total 35720 | 21 1031 523 131 413 1752 1361 66 891 2052 808 1158 711 1332 934 1015 663 2674 1065 219 987 2397 858 206 119 1164 334 75 1068 932 343 113 1754 247 570 534 986 115 313 1638 2147 Wait 4797 | . 154 1 . 14 124 148 28 83 524 170 202 25 371 52 3 20 268 47 3 32 594 12 5 12 68 103 . 58 88 48 . 465 2 26 6 168 2 125 369 377 Move 26992 | 21 741 516 131 380 1450 1089 32 699 1454 561 875 686 852 732 960 572 2278 929 204 796 1596 743 200 100 957 201 54 812 710 220 99 1016 185 502 451 659 83 137 908 1401 Hop . | . . . . . . . . . . . . . . . . . . . . . . . . . . . . . . . . . . . . . . . . . Pick Up 33 | . . . . . . . . . . . . . 2 . . . . . . . . . . . . . 1 6 . 1 1 4 3 . . . . . 6 9 Fast Attach 50 | . . . . 1 . . . . . . . . 1 5 1 . 1 . . . 1 . . . . . 1 . . . 1 3 . 4 4 3 . . 12 12 Attach 65 | . . . . . 2 1 1 1 . . . . . . . 1 3 1 1 . . . . 1 . . 1 8 . 2 1 14 3 . . 2 . 2 6 14 Detach 45 | . . . . 1 2 2 3 1 . . . . 1 . . . 2 2 1 1 . . . 1 . . 1 3 . 1 . 9 . 1 1 . . . 4 8 Swap 184 | . 3 1 . . 2 . . 9 1 6 6 . 6 6 . . 9 . . 3 14 7 . . 8 3 1 31 10 4 . 12 9 3 3 6 . 8 8 5 Drop 145 | . . . . . . 1 2 2 . 2 2 . 11 . 2 2 4 3 1 . 1 . . 2 . . 8 10 3 5 3 14 4 6 8 5 4 6 13 21 Fire 2585 | . 11 3 . 12 99 75 . 61 72 45 18 . 42 109 49 65 96 81 9 98 114 64 1 3 70 17 5 128 121 61 8 158 41 26 61 143 26 35 296 262 Melee 74 | . 1 . . . . . . . . . 55 . 1 9 . . . . . . . . . . . 2 3 1 . . . 2 . . . . . . . . Ram . | . . . . . . . . . . . . . . . . . . . . . . . . . . . . . . . . . . . . . . . . . Kick . | . . . . . . . . . . . . . . . . . . . . . . . . . . . . . . . . . . . . . . . . . Crush 48 | . . 2 . 4 10 . . . . 3 . . 6 . . . 7 . . . 1 . . . 8 . . 2 . 1 . 2 . 2 . . . . . . Escape Stasis 19 | . . . . 1 . . . . . . . . . . . . . . . . . . . . . . . . . . . . . . . . . . 12 6 Rewire 106 | . . . . . . 18 . 1 . . . . . 1 . 3 . 2 . 57 1 23 . . . . . . . . . . . . . . . . . . Trap 436 | . 121 . . . 63 . . . . 21 . . 39 11 . . 6 . . . 75 . . . 45 . . . . . . 55 . . . . . . . . Miscellaneous 141 | . . . . . . 27 . 34 1 . . . . 9 . . . . . . . 9 . . 8 8 . 9 . . . . . . . . . . 4 32 Route ------- -11/Scrapyard -10/Materials (discovered 6 exits: *Mat x3 / *Min x2 / Sub) -10/Mines (discovered 4 exits: *Mat x2 / *Exi / Sub) -10/Exiles -9/Mines (discovered 2 exits: *Mat x2) -8/Materials (discovered 5 exits: *Fac x3 / *Sto / Gar) -8/Garrison (discovered 4 exits: *Mat x4) -8/Materials (discovered 3 exits: Sto x2 / Gar) -8/Garrison (discovered 3 exits: *Mat x3) -8/Materials (discovered 5 exits: *Fac x3 / *Sto x2) -8/Storage (discovered 2 exits: *Fac / *Rec) -8/Recycling (discovered 2 exits: *Fac / *Scr) -8/Scraptown (discovered 2 exits: *Fac x2) -6/Factory (discovered 7 exits: Fac x4 / Low x2 / Gar) -6/Garrison (discovered 3 exits: *Fac x3) -6/Factory (discovered 6 exits: Fac x3 / Low x2 / Gar) -6/Garrison (discovered 3 exits: *Fac x3) -6/Factory (discovered 7 exits: *Fac x4 / *Low x2 / Gar) -6/Garrison (discovered 3 exits: *Fac x3) -6/Factory -6/Garrison (discovered 4 exits: *Fac x4) -6/Factory (discovered 7 exits: Fac x4 / *Low x2 / Gar) -6/Garrison (discovered 3 exits: *Fac x3) -6/Factory (discovered 3 exits: *Fac / Low x2) -5/Factory (discovered 4 exits: Upp x2 / *Ext x2) -5/Extension (discovered 3 exits: *Fac x2 / *Cet) -5/Cetus (discovered 3 exits: *Fac x2 / *Arc) -5/Archives -5/Hub_04(d) (discovered 5 exits: *Fac x4 / Gar) -5/Garrison (discovered 3 exits: *Fac x3) -4/Factory (discovered 5 exits: Res x3 / Upp x2) -4/Waste -4/Factory (discovered 6 exits: *Res x3 / Upp x2 / Gar) -4/Garrison (discovered 3 exits: *Res x3) -3/Research (discovered 5 exits: *Res x2 / *Arm / *Qua x2) -3/Quarantine (discovered 2 exits: *Res / *Sec) -3/Section 7 -3/Garrison (discovered 3 exits: *Res x3) -2/Research (discovered 2 exits: *Acc / *Tes) -1/Access -1/Command (discovered 2 exits: *Sur x2) 0b11 Command History --------- Turn | Location | Event 9 | -11/Scrapyard | Identified exit to Materials 9 | -11/Scrapyard | Discovered exit to Materials (range 13) 35 | -11/Scrapyard | Entered Materials 35 | -10/Materials | Evolved 1 slot: Utility x1 156 | -10/Materials | Met 8R-AWN 236 | -10/Materials | Identified exit to Mines 236 | -10/Materials | Discovered exit to Mines (range 7) 302 | -10/Materials | Build established: Hacker-Mutant 418 | -10/Materials | Discovered exit to Mines (range 15) 530 | -10/Materials | Identified exit to Materials 530 | -10/Materials | Discovered exit to Materials (range 11) 708 | -10/Materials | Discovered exit to Materials (range 4) 985 | -10/Materials | Learned location of 1 exit from Recycling 1040 | -10/Materials | Loaded intel: 19 trap records 1086 | -10/Materials | Learned location of 2 exits from Subcaves 1145 | -10/Materials | Learned Materials trap positions 1187 | -10/Materials | Learned location of 1 exit from Recycling 1225 | -10/Materials | Identified exit to Subcaves 1275 | -10/Materials | Learned 2 Mines zone layouts 1335 | -10/Materials | Derelicts attacked the area 1531 | -10/Materials | Entered Mines 1533 | -10/Mines | Followed 8R-AWN into the Mines 1554 | -10/Mines | Met a Derelict bent on vengeance 1575 | -10/Mines | Identified exit to Exiles 1575 | -10/Mines | Discovered exit to Exiles (range 5) 2371 | -10/Mines | Entered Exiles 2410 | -10/Exiles | Welcomed by 8R-AWN 2437 | -10/Exiles | Met EX-HEX 2485 | -10/Exiles | Met EX-BIN 2507 | -10/Exiles | Met EX-DEC 2515 | -10/Exiles | Learned location of Zion (-7) 2563 | -10/Exiles | Identified exit to Mines 2563 | -10/Exiles | Discovered exit to Mines (range 11) 2581 | -10/Exiles | Entered Mines 2582 | -9/Mines | Assembled infested the area 2587 | -9/Mines | Assisted by a Guerilla fighting off Assembled 2599 | -9/Mines | Found a damaged Exp. Sensor Array with a note attached 2602 | -9/Mines | Found Prototype Device 2602 | -9/Mines | Identified Exp. Sensor Array 2662 | -9/Mines | Crushed by falling debris 2702 | -9/Mines | Identified exit to Materials 2702 | -9/Mines | Discovered exit to Materials (range 8) 2703 | -9/Mines | Learned location of Storage (-8) 3197 | -9/Mines | Discovered exit to Materials (range 14) 3221 | -9/Mines | Entered Materials 3221 | -8/Materials | Evolved 4 slots: Propulsion x1, Utility x2, Weapon x1 3222 | -8/Materials | Loaded intel: 21 trap records 3308 | -8/Materials | Identified exit to Storage 3308 | -8/Materials | Discovered exit to Storage (range 14) 3479 | -8/Materials | Identified exit to Garrison 3660 | -8/Materials | Identified exit to Factory 3660 | -8/Materials | Discovered exit to Factory (range 4) 3898 | -8/Materials | Discovered exit to Factory (range 17) 4139 | -8/Materials | Learned Storage stockpile data 4199 | -8/Materials | Learned location of 2 exits from Lower Caves 4287 | -8/Materials | Learned location of 1 exit from Extension 4333 | -8/Materials | Learned location of 3 exits from Factory 4395 | -8/Materials | Learned Storage security intel 4443 | -8/Materials | Learned Storage security intel 4503 | -8/Materials | Learned location of 2 exits from Factory 5744 | -8/Materials | Learned location of 2 exits from Lower Caves 5769 | -8/Materials | Learned Storage trap positions 5784 | -8/Materials | Learned Factory stockpile data 5785 | -8/Materials | Learned Factory trap positions 5786 | -8/Materials | Learned Storage non-interactive machine intel 5787 | -8/Materials | Learned location of Extension (-5) 5815 | -8/Materials | Learned 4 Factory zone layouts 5886 | -8/Materials | Entered Garrison 5886 | -8/Garrison | Accompanied by 1 ally 5992 | -8/Garrison | Triggered checkpoint 6259 | -8/Garrison | Triggered checkpoint 6336 | -8/Garrison | Triggered checkpoint 6349 | -8/Garrison | Triggered checkpoint 6381 | -8/Garrison | Destroyed 8 combat bots 6674 | -8/Garrison | Triggered checkpoint 6728 | -8/Garrison | Rescued a captive Derelict 6730 | -8/Garrison | Rescued a captive Derelict 6792 | -8/Garrison | Identified exit to Materials 6792 | -8/Garrison | Discovered exit to Materials (range 3) 6839 | -8/Garrison | Garrison Relay disabled 7031 | -8/Garrison | Phase Generator disabled 7081 | -8/Garrison | Garrison Relay disabled 7220 | -8/Garrison | Build established: Hacker-Tank 7352 | -8/Garrison | Triggered checkpoint 7485 | -8/Garrison | Garrison Relay disabled 7527 | -8/Garrison | Discovered exit to Materials (range 10) 7752 | -8/Garrison | Triggered checkpoint 7780 | -8/Garrison | Garrison Relay disabled 7804 | -8/Garrison | Discovered exit to Materials (range 9) 7846 | -8/Garrison | Triggered checkpoint 7855 | -8/Garrison | Discovered exit to Materials (range 5) 7926 | -8/Garrison | Attempted to access garrison exit controls, blocked by remote lockdown 7959 | -8/Garrison | Entered Materials 7959 | -8/Materials | Accompanied by 6 allies 8041 | -8/Materials | Identified exit to Garrison 8041 | -8/Materials | Entered Garrison 8041 | -8/Garrison | Accompanied by 6 allies 8119 | -8/Garrison | Triggered checkpoint 8145 | -8/Garrison | Triggered checkpoint 8166 | -8/Garrison | Destroyed 8 combat bots 8189 | -8/Garrison | Triggered checkpoint 8284 | -8/Garrison | Identified exit to Materials 8284 | -8/Garrison | Discovered exit to Materials (range 24) 8284 | -8/Garrison | Discovered exit to Materials (range 69) 8284 | -8/Garrison | Discovered exit to Materials (range 37) 8319 | -8/Garrison | Build established: Hacker-Gunner 8376 | -8/Garrison | Garrison Relay disabled 8463 | -8/Garrison | Phase Generator disabled 8568 | -8/Garrison | Garrison Relay disabled 8667 | -8/Garrison | Rescued a captive Derelict 8677 | -8/Garrison | Rescued a captive Derelict 8795 | -8/Garrison | Triggered checkpoint 8823 | -8/Garrison | Triggered checkpoint 8838 | -8/Garrison | Garrison Relay disabled 9005 | -8/Garrison | Garrison Relay disabled 9018 | -8/Garrison | Learned Materials security intel 9129 | -8/Garrison | Garrison Relay disabled 9323 | -8/Garrison | P-60 Hacker assimilated allied T6-RHO(h) 9397 | -8/Garrison | Garrison Relay disabled 9430 | -8/Garrison | Garrison Relay disabled 9458 | -8/Garrison | Entered Materials 9458 | -8/Materials | Accompanied by 1 ally 9540 | -8/Materials | Discovered exit to Storage (range 12) 9617 | -8/Materials | Discovered exit to Storage (range 14) 10258 | -8/Materials | First assault squad dispatched 10301 | -8/Materials | Discovered exit to Factory (range 5) 10711 | -8/Materials | Learned Factory non-interactive machine intel 10785 | -8/Materials | Learned Factory recycling unit intel 10849 | -8/Materials | Learned location of Recycling (-8) 10981 | -8/Materials | Learned location of 1 exit from Storage 11024 | -8/Materials | Learned Factory trap positions 11145 | -8/Materials | Learned Factory garrison access intel 12386 | -8/Materials | Entered Storage 12386 | -8/Storage | Accompanied by 1 ally 12387 | -8/Storage | Identified exit to Recycling 12388 | -8/Storage | Loaded intel: 26 trap records 12390 | -8/Storage | Loaded intel: 22 non-interactive machine locations 13263 | -8/Storage | Used back door to open Recycling access 13295 | -8/Storage | Learned Factory stockpile data 13296 | -8/Storage | Learned location of Lower Caves (-6) 13298 | -8/Storage | Learned location of 1 exit from Extension 13334 | -8/Storage | Learned 4 Lower Caves zone layouts 13600 | -8/Storage | Entered Recycling 13601 | -8/Recycling | Identified exit to Factory 13602 | -8/Recycling | Identified exit to Scraptown 14472 | -8/Recycling | Build established: Commander-Gunner 14959 | -8/Recycling | Learned Factory security intel 15020 | -8/Recycling | Learned Storage stockpile data 15114 | -8/Recycling | Learned Factory emergency access door positions 15146 | -8/Recycling | Learned 2 Storage zone layouts 15167 | -8/Recycling | Learned location of 2 exits from Factory 15177 | -8/Recycling | Learned location of 2 exits from Lower Caves 15229 | -8/Recycling | Learned Storage garrison access intel 15245 | -8/Recycling | Scanned before Scraplab entrance 15271 | -8/Recycling | Learned Factory interactive machine intel 15279 | -8/Recycling | Entered Scraplab 15343 | -8/Recycling | Entered Scraptown 15343 | -8/Scraptown | Accompanied by 21 allies 15692 | -8/Scraptown | Visited Assassins FH 15716 | -8/Scraptown | Visited Fellowship of the Rings 15788 | -8/Scraptown | Visited Red Mages 15820 | -8/Scraptown | Visited Comm Corps 15846 | -8/Scraptown | Visited TADAMA 15871 | -8/Scraptown | Visited Symbiants 16100 | -8/Scraptown | Visited Cyclists 16466 | -8/Scraptown | Entered Factory 16466 | -6/Factory | Accompanied by 21 allies 16466 | -6/Factory | Evolved 4 slots: Power x1, Propulsion x1, Utility x1, Weapon x1 16467 | -6/Factory | Identified exit to Factory 16467 | -6/Factory | Identified exit to Lower Caves 16470 | -6/Factory | Loaded intel: 103 trap records 16473 | -6/Factory | Loaded intel: 205 non-interactive machine locations 16474 | -6/Factory | Loaded intel: 51 interactive machine locations 16475 | -6/Factory | Loaded intel: 6 recycling unit locations 16476 | -6/Factory | Loaded intel: 3 garrison access locations 16544 | -6/Factory | Lost 5 allies 16764 | -6/Factory | Build established: Commander-Tank 16891 | -6/Factory | Lost 8 allies 17329 | -6/Factory | Garrison activated, responded to threat 17353 | -6/Factory | Build established: Hacker-Tank 17705 | -6/Factory | Garrison activated, responded to threat 18004 | -6/Factory | Learned location of Cetus (-5) 18080 | -6/Factory | Learned 2 Hub_04(d) zone layouts 18254 | -6/Factory | Learned 4 Lower Caves zone layouts 18376 | -6/Factory | Learned location of 2 exits from Proximity Caves 18383 | -6/Factory | Identified exit to Garrison 18383 | -6/Factory | Entered Garrison 18417 | -6/Garrison | Triggered checkpoint 18436 | -6/Garrison | Garrison Relay disabled 18469 | -6/Garrison | Spotted B-75 Beast 18487 | -6/Garrison | Destroyed B-75 Beast 18619 | -6/Garrison | Triggered checkpoint 18631 | -6/Garrison | Triggered checkpoint 18634 | -6/Garrison | Triggered checkpoint 18645 | -6/Garrison | Triggered checkpoint 18679 | -6/Garrison | Destroyed 8 combat bots 18681 | -6/Garrison | Identified exit to Factory 18681 | -6/Garrison | Discovered exit to Factory (range 45) 18681 | -6/Garrison | Discovered exit to Factory (range 15) 18681 | -6/Garrison | Discovered exit to Factory (range 50) 18744 | -6/Garrison | Triggered checkpoint 18792 | -6/Garrison | Phase Generator disabled 18857 | -6/Garrison | Spotted Striker 18864 | -6/Garrison | Spotted Striker 18904 | -6/Garrison | Destroyed Striker 18918 | -6/Garrison | Destroyed Striker 18981 | -6/Garrison | Triggered checkpoint 19022 | -6/Garrison | Destroyed 7 combat bots 19061 | -6/Garrison | Garrison Relay disabled 19171 | -6/Garrison | Triggered checkpoint 19201 | -6/Garrison | Garrison Relay disabled 19219 | -6/Garrison | Triggered checkpoint 19224 | -6/Garrison | Garrison Relay disabled 19243 | -6/Garrison | Found embedded Infiltrators 19349 | -6/Garrison | Triggered checkpoint 19361 | -6/Garrison | Garrison Relay disabled 19443 | -6/Garrison | Triggered checkpoint 19457 | -6/Garrison | Triggered checkpoint 19477 | -6/Garrison | Garrison Relay disabled 19808 | -6/Garrison | Destroyed 12 combat bots 19961 | -6/Garrison | Entered Factory 19961 | -6/Factory | Accompanied by 6 allies 19963 | -6/Factory | Loaded intel: 93 trap records 20648 | -6/Factory | Garrison activated, responded to threat 21260 | -6/Factory | Learned location of 1 exit from Lower Caves 21271 | -6/Factory | Garrison activated, responded to threat 21305 | -6/Factory | Learned location of 2 exits from Proximity Caves 21341 | -6/Factory | Learned location of 3 exits from Factory 21361 | -6/Factory | First assault squad dispatched 21367 | -6/Factory | Learned Extension stockpile data 21406 | -6/Factory | Learned Extension emergency access door positions 21441 | -6/Factory | Learned Extension emergency access door positions 21575 | -6/Factory | Garrison activated, responded to threat 21614 | -6/Factory | Destroyed 7 combat bots 21615 | -6/Factory | Lost 4 allies 21635 | -6/Factory | Identified exit to Garrison 21635 | -6/Factory | Entered Garrison 21635 | -6/Garrison | Accompanied by 1 ally 21671 | -6/Garrison | Triggered checkpoint 21671 | -6/Garrison | Identified exit to Factory 21671 | -6/Garrison | Discovered exit to Factory (range 54) 21671 | -6/Garrison | Discovered exit to Factory (range 70) 21671 | -6/Garrison | Discovered exit to Factory (range 62) 21691 | -6/Garrison | Learned Factory security intel 21722 | -6/Garrison | Garrison Relay disabled 21794 | -6/Garrison | Spotted B-75 Beast 21817 | -6/Garrison | Allies destroyed B-75 Beast 21842 | -6/Garrison | Triggered checkpoint 21850 | -6/Garrison | Triggered checkpoint 21969 | -6/Garrison | Triggered checkpoint 21990 | -6/Garrison | Garrison Relay disabled 22251 | -6/Garrison | Phase Generator disabled 22307 | -6/Garrison | Triggered checkpoint 22339 | -6/Garrison | Learned Factory security intel 22355 | -6/Garrison | Garrison Relay disabled 22454 | -6/Garrison | Rescued a captive Derelict 22461 | -6/Garrison | Rescued a captive Derelict 22545 | -6/Garrison | Garrison Relay disabled 22584 | -6/Garrison | Garrison Relay disabled 22628 | -6/Garrison | Spotted B-75 Beast 22649 | -6/Garrison | Destroyed B-75 Beast 22671 | -6/Garrison | Rewired B-90 Cyclops 22739 | -6/Garrison | Entered Factory 22739 | -6/Factory | Accompanied by 1 ally 23089 | -6/Factory | First assault squad dispatched 23220 | -6/Factory | Garrison activated, responded to threat 23602 | -6/Factory | Discovered exit to Lower Caves (range 12) 24454 | -6/Factory | Discovered exit to Lower Caves (range 15) 25599 | -6/Factory | Learned Hub_04(d) emergency access door positions 25637 | -6/Factory | Learned location of Upper Caves (-5) 25663 | -6/Factory | Learned 2 Lower Caves zone layouts 26532 | -6/Factory | Learned Extension trap positions 26571 | -6/Factory | Learned 4 Proximity Caves zone layouts 26625 | -6/Factory | Learned location of 1 exit from Lower Caves 26686 | -6/Factory | Learned location of Warlord (-5) 26945 | -6/Factory | Identified exit to Garrison 26945 | -6/Factory | Entered Garrison 26946 | -6/Garrison | Identified exit to Factory 26965 | -6/Garrison | Triggered checkpoint 26981 | -6/Garrison | Garrison Relay disabled 27027 | -6/Garrison | Spotted B-86 Titan 27055 | -6/Garrison | Destroyed B-86 Titan 27096 | -6/Garrison | Rewired B-86 Titan 27177 | -6/Garrison | Triggered checkpoint 27191 | -6/Garrison | Triggered checkpoint 27339 | -6/Garrison | Triggered checkpoint 27530 | -6/Garrison | Rescued a captive Derelict 27607 | -6/Garrison | Garrison Relay disabled 27618 | -6/Garrison | Garrison Relay disabled 27906 | -6/Garrison | Discovered exit to Factory (range 11) 27951 | -6/Garrison | Triggered checkpoint 27957 | -6/Garrison | Garrison Relay disabled 27976 | -6/Garrison | Discovered exit to Factory (range 34) 27976 | -6/Garrison | Discovered exit to Factory (range 43) 27976 | -6/Garrison | Discovered exit to Factory (range 68) 28192 | -6/Garrison | Spotted Striker 28192 | -6/Garrison | Spotted Striker 28214 | -6/Garrison | Destroyed Striker 28225 | -6/Garrison | Destroyed Striker 28398 | -6/Garrison | Phase Generator disabled 28438 | -6/Garrison | Garrison Relay disabled 28453 | -6/Garrison | Triggered checkpoint 28462 | -6/Garrison | Learned Factory security intel 28687 | -6/Garrison | Entered Factory 28910 | -6/Factory | Adv. System Shield fried by hacking feedback 29043 | -6/Factory | Identified exit to Garrison 29043 | -6/Factory | Entered Garrison 29116 | -6/Garrison | Garrison Relay disabled 29130 | -6/Garrison | Garrison Relay disabled 29211 | -6/Garrison | Spotted B-75 Beast 29221 | -6/Garrison | Destroyed B-75 Beast 29302 | -6/Garrison | Destroyed 12 combat bots 29345 | -6/Garrison | Triggered checkpoint 29389 | -6/Garrison | Garrison Relay disabled 29445 | -6/Garrison | Identified exit to Factory 29445 | -6/Garrison | Discovered exit to Factory (range 8) 29471 | -6/Garrison | Triggered checkpoint 29492 | -6/Garrison | Discovered exit to Factory (range 5) 29595 | -6/Garrison | Triggered checkpoint 29614 | -6/Garrison | Triggered checkpoint 29683 | -6/Garrison | Triggered checkpoint 29712 | -6/Garrison | Garrison Relay disabled 29835 | -6/Garrison | Discovered exit to Factory (range 13) 30034 | -6/Garrison | Discovered exit to Factory (range 11) 30044 | -6/Garrison | Learned Factory security intel 30044 | -6/Garrison | Discovered exit to Factory (range 58) 30044 | -6/Garrison | Discovered exit to Factory (range 11) 30044 | -6/Garrison | Discovered exit to Factory (range 68) 30044 | -6/Garrison | Discovered exit to Factory (range 80) 30148 | -6/Garrison | Triggered checkpoint 30165 | -6/Garrison | Garrison Relay disabled 30338 | -6/Garrison | Destroyed 8 combat bots 30370 | -6/Garrison | Build established: Hacker-Gunner 30617 | -6/Garrison | Phase Generator disabled 30655 | -6/Garrison | Entered Factory 30655 | -6/Factory | Accompanied by 8 allies 30674 | -6/Factory | Build established: Commander-Gunner 31005 | -6/Factory | First assault squad dispatched 31119 | -6/Factory | Build established: Hacker-Tank 31436 | -6/Factory | Learned location of 1 exit from Proximity Caves 31466 | -6/Factory | Discovered exit to Lower Caves (range 18) 31641 | -6/Factory | Loaded intel: 4 scanalyzer locations 31689 | -6/Factory | Learned location of 2 exits from Upper Caves 31981 | -6/Factory | Learned 4 Factory zone layouts 32131 | -6/Factory | Allied Derelicts emerged from ambush trap array 32830 | -6/Factory | Learned location of 1 exit from Proximity Caves 32921 | -6/Factory | Learned 4 Proximity Caves zone layouts 32989 | -6/Factory | Learned location of Upper Caves (-4) 33044 | -6/Factory | Learned location of 2 exits from Proximity Caves 33532 | -6/Factory | Spotted B-75 Beast 33557 | -6/Factory | Destroyed B-75 Beast 33602 | -6/Factory | Learned Extension trap positions 33628 | -6/Factory | Garrison activated, responded to threat 33752 | -6/Factory | Identified exit to Garrison 33755 | -6/Factory | Loaded intel: 6 repair station locations 33818 | -6/Factory | Learned location of 1 exit from Cetus 33873 | -6/Factory | Learned 2 Proximity Caves zone layouts 33947 | -6/Factory | Garrison activated, responded to threat 33955 | -6/Factory | Learned location of 1 exit from Hub_04(d) 34000 | -6/Factory | Learned 2 Upper Caves zone layouts 34053 | -6/Factory | Learned location of 1 exit from Cetus 34116 | -6/Factory | Loaded intel: 6 recycling unit locations 34211 | -6/Factory | Entered Garrison 34299 | -6/Garrison | Triggered checkpoint 34334 | -6/Garrison | Garrison Relay disabled 34459 | -6/Garrison | Triggered checkpoint 34464 | -6/Garrison | Destroyed 11 combat bots 34477 | -6/Garrison | Triggered checkpoint 34518 | -6/Garrison | Destroyed 8 combat bots 34561 | -6/Garrison | Triggered checkpoint 34588 | -6/Garrison | Garrison Relay disabled 34711 | -6/Garrison | Identified exit to Factory 34711 | -6/Garrison | Discovered exit to Factory (range 14) 34819 | -6/Garrison | Triggered checkpoint 34865 | -6/Garrison | Garrison Relay disabled 34880 | -6/Garrison | Rescued a captive Derelict 34886 | -6/Garrison | Rescued a captive Derelict 34956 | -6/Garrison | Discovered exit to Factory (range 13) 34969 | -6/Garrison | Discovered exit to Factory (range 12) 34969 | -6/Garrison | Discovered exit to Factory (range 45) 34969 | -6/Garrison | Discovered exit to Factory (range 49) 35047 | -6/Garrison | Garrison Relay disabled 35162 | -6/Garrison | Phase Generator disabled 35225 | -6/Garrison | Garrison Relay disabled 35259 | -6/Garrison | Learned Factory security intel 35297 | -6/Garrison | Garrison Relay disabled 35466 | -6/Garrison | Rewired Striker 35471 | -6/Garrison | Rewired Striker 35627 | -6/Garrison | Entered Factory 35627 | -6/Factory | Accompanied by 4 allies 35930 | -6/Factory | Discovered exit to Factory (range 9) 35954 | -6/Factory | Entered another Factory area 35954 | -5/Factory | Accompanied by 3 allies 35954 | -5/Factory | Evolved 2 slots: Utility x2 35955 | -5/Factory | Identified exit to Upper Caves 35955 | -5/Factory | Identified exit to Extension 36137 | -5/Factory | Entered Extension 36137 | -5/Extension | Accompanied by 1 ally 36138 | -5/Extension | Identified exit to Factory 36138 | -5/Extension | Identified exit to Cetus 36139 | -5/Extension | Loaded intel: 14 trap records 36272 | -5/Extension | Spotted B-75 Beast 36290 | -5/Extension | Destroyed B-75 Beast 36316 | -5/Extension | Spotted B-75 Beast 36342 | -5/Extension | Destroyed B-75 Beast 36478 | -5/Extension | Build established: Hacker-Gunner 36800 | -5/Extension | Discovered exit to Factory (range 10) 36823 | -5/Extension | Disrupted transfer network 37496 | -5/Extension | Rescued a captive Derelict 37497 | -5/Extension | Rescued a captive Derelict 37565 | -5/Extension | Rescued a captive Derelict 37575 | -5/Extension | Rescued a captive Derelict 37646 | -5/Extension | Rescued A7 37858 | -5/Extension | Build established: Hacker-Tank 37899 | -5/Extension | Rescued a captive Derelict 37945 | -5/Extension | Rescued a captive Derelict 37951 | -5/Extension | Rescued a captive Derelict 38011 | -5/Extension | Entered Cetus 38011 | -5/Cetus | Accompanied by 8 allies (A7) 38012 | -5/Cetus | Identified exit to Archives 38016 | -5/Cetus | Acquired a Cetus Manufacturing Module code from A7 38032 | -5/Cetus | Spotted Cetus Guard 38032 | -5/Cetus | Spotted Cetus Guard 38035 | -5/Cetus | Spotted Cetus Guard 38035 | -5/Cetus | Spotted Cetus Guard 38044 | -5/Cetus | Destroyed Cetus Guard 38056 | -5/Cetus | Allies destroyed Cetus Guard 38057 | -5/Cetus | Destroyed Cetus Guard 38061 | -5/Cetus | Allies destroyed Cetus Guard 38163 | -5/Cetus | Spotted Cetus Guard 38163 | -5/Cetus | Spotted Cetus Guard 38166 | -5/Cetus | Spotted Cetus Guard 38166 | -5/Cetus | Spotted Cetus Guard 38178 | -5/Cetus | Allies destroyed Cetus Guard 38186 | -5/Cetus | Destroyed Cetus Guard 38194 | -5/Cetus | Destroyed Cetus Guard 38195 | -5/Cetus | Allies destroyed Cetus Guard 38199 | -5/Cetus | Discovered exit to Factory (range 15) 38207 | -5/Cetus | Met Revision 17 38300 | -5/Cetus | Escorted A7 to Cetus Mainframe 38302 | -5/Cetus | Build established: Hacker-Gunner 38318 | -5/Cetus | Started Cetus Manufacturing Module 38343 | -5/Cetus | Manufactured an Enhanced Grunt 38368 | -5/Cetus | Manufactured an Enhanced Grunt 38393 | -5/Cetus | Manufactured an Enhanced Grunt 38418 | -5/Cetus | Manufactured an Enhanced Grunt 38443 | -5/Cetus | Manufactured an Enhanced Grunt 38496 | -5/Cetus | Entered Archives 38496 | -5/Archives | Accompanied by 9 allies (A7) 38501 | -5/Archives | Received a hacking code to weaken MAIN.C 38516 | -5/Archives | Met Zhirov 38522 | -5/Archives | Reinforcements dispatched to Archives 38542 | -5/Archives | Read partially decrypted archive contents 38546 | -5/Archives | Identified exit to Hub_04(d) 38546 | -5/Archives | Discovered exit to Hub_04(d) (range 16) 38567 | -5/Archives | Reinforcements dispatched to Archives 38569 | -5/Archives | Zhirov warped through subspace 38587 | -5/Archives | Zhirov detonated Archives 38608 | -5/Archives | Entered Hub_04(d) 38618 | -5/Hub_04(d) | Lost 7 allies 38827 | -5/Hub_04(d) | Found Powered Armor 38951 | -5/Hub_04(d) | Discovered exit to Factory (range 4) 38962 | -5/Hub_04(d) | Build established: Hacker-Tank 39092 | -5/Hub_04(d) | Garrison activated, responded to threat 39153 | -5/Hub_04(d) | Discovered exit to Factory (range 12) 39219 | -5/Hub_04(d) | Learned 4 Quarantine zone layouts 39279 | -5/Hub_04(d) | Learned location of 3 exits from Factory 39280 | -5/Hub_04(d) | Learned Extension stockpile data 39309 | -5/Hub_04(d) | Learned Extension garrison access intel 39475 | -5/Hub_04(d) | Network Hub disabled 39625 | -5/Hub_04(d) | Spotted Lightning 39636 | -5/Hub_04(d) | Destroyed Lightning 39638 | -5/Hub_04(d) | Spotted Lightning 39638 | -5/Hub_04(d) | Spotted Lightning 39653 | -5/Hub_04(d) | Destroyed Lightning 39692 | -5/Hub_04(d) | Destroyed Lightning 39745 | -5/Hub_04(d) | Network Hub disabled 39808 | -5/Hub_04(d) | First assault squad dispatched 39880 | -5/Hub_04(d) | Spotted Lightning 39881 | -5/Hub_04(d) | Spotted Lightning 39887 | -5/Hub_04(d) | Spotted Lightning 39896 | -5/Hub_04(d) | Destroyed Lightning 39903 | -5/Hub_04(d) | Destroyed Lightning 39908 | -5/Hub_04(d) | Destroyed Lightning 39929 | -5/Hub_04(d) | Destroyed 7 combat bots 39988 | -5/Hub_04(d) | Build established: Hacker-Gunner 40017 | -5/Hub_04(d) | Spotted Lightning 40018 | -5/Hub_04(d) | Spotted Lightning 40021 | -5/Hub_04(d) | Spotted Lightning 40027 | -5/Hub_04(d) | Destroyed Lightning 40047 | -5/Hub_04(d) | Destroyed Lightning 40052 | -5/Hub_04(d) | Destroyed Lightning 40105 | -5/Hub_04(d) | Network Hub disabled 40198 | -5/Hub_04(d) | Garrison activated, responded to threat 40249 | -5/Hub_04(d) | Network Hub disabled 40325 | -5/Hub_04(d) | Build established: Hacker-Tank 40370 | -5/Hub_04(d) | Identified exit to Garrison 40370 | -5/Hub_04(d) | Entered Garrison 40439 | -5/Garrison | Spotted B-86 Titan 40445 | -5/Garrison | Destroyed B-86 Titan 40506 | -5/Garrison | Triggered checkpoint 40546 | -5/Garrison | Garrison Relay disabled 40594 | -5/Garrison | Triggered checkpoint 40659 | -5/Garrison | Destroyed 8 combat bots 40742 | -5/Garrison | Triggered checkpoint 40772 | -5/Garrison | Garrison Relay disabled 40811 | -5/Garrison | Discovered exit to Factory (range 10) 40876 | -5/Garrison | Triggered checkpoint 40928 | -5/Garrison | Triggered checkpoint 40953 | -5/Garrison | Garrison Relay disabled 40968 | -5/Garrison | Triggered checkpoint 41016 | -5/Garrison | Discovered exit to Factory (range 16) 41032 | -5/Garrison | Triggered checkpoint 41162 | -5/Garrison | Discovered exit to Factory (range 66) 41162 | -5/Garrison | Discovered exit to Factory (range 20) 41162 | -5/Garrison | Discovered exit to Factory (range 48) 41192 | -5/Garrison | Spotted B-75 Beast 41192 | -5/Garrison | Spotted B-75 Beast 41205 | -5/Garrison | Destroyed B-75 Beast 41217 | -5/Garrison | Destroyed B-75 Beast 41337 | -5/Garrison | Garrison Relay disabled 41432 | -5/Garrison | Triggered checkpoint 41456 | -5/Garrison | Garrison Relay disabled 41628 | -5/Garrison | Spotted B-75 Beast 41646 | -5/Garrison | Destroyed B-75 Beast 41908 | -5/Garrison | Entered Factory 41908 | -4/Factory | Evolved 2 slots: Utility x2 41909 | -4/Factory | Identified exit to Upper Caves 41910 | -4/Factory | Identified exit to Research 42111 | -4/Factory | Destroyed 8 combat bots 42195 | -4/Factory | First assault squad dispatched 42282 | -4/Factory | Garrison activated, responded to threat 42311 | -4/Factory | Destroyed 11 combat bots 42331 | -4/Factory | Spotted B-86 Titan 42339 | -4/Factory | Destroyed B-86 Titan 42423 | -4/Factory | High security lockdown imminent 42466 | -4/Factory | Sucked down chute 42466 | -4/Factory | Entered Waste 42466 | -4/Waste | The area was eerily silent 42593 | -4/Waste | Identified exit to Factory 42593 | -4/Waste | Discovered exit to Factory (range 21) 42648 | -4/Waste | Build established: Hacker-Gunner 42648 | -4/Waste | Entered Factory 42682 | -4/Factory | Found Imp. Powered Armor 42849 | -4/Factory | Found Thermal Barrier 42858 | -4/Factory | Found Electrostorm Shotgun 42898 | -4/Factory | First assault squad dispatched 43061 | -4/Factory | Destroyed 7 combat bots 43122 | -4/Factory | Build established: Hacker-Tank 43172 | -4/Factory | Spotted B-86 Titan 43182 | -4/Factory | Destroyed B-86 Titan 44193 | -4/Factory | Discovered exit to Research (range 21) 44525 | -4/Factory | Spotted B-86 Titan 44534 | -4/Factory | Destroyed B-86 Titan 44752 | -4/Factory | Discovered exit to Research (range 12) 44810 | -4/Factory | Learned location of Quarantine (-3) 44890 | -4/Factory | Learned 12 Research zone layouts 44952 | -4/Factory | Garrison activated, responded to threat 44959 | -4/Factory | Learned 2 Proximity Caves zone layouts 44975 | -4/Factory | Destroyed 10 combat bots 44982 | -4/Factory | Identified exit to Garrison 45016 | -4/Factory | Learned Research stockpile data 45062 | -4/Factory | Learned location of 2 exits from Upper Caves 45098 | -4/Factory | Learned location of 1 exit from Armory 45270 | -4/Factory | Learned Quarantine terminal intel 45271 | -4/Factory | Entered Garrison 45289 | -4/Garrison | Triggered checkpoint 45453 | -4/Garrison | Triggered checkpoint 45464 | -4/Garrison | Found Tactical Quantum Warhead 45516 | -4/Garrison | Triggered checkpoint 45516 | -4/Garrison | Triggered checkpoint 45523 | -4/Garrison | Destroyed 8 combat bots 45621 | -4/Garrison | Discovered exit to Research (range 33) 45621 | -4/Garrison | Discovered exit to Research (range 47) 45621 | -4/Garrison | Discovered exit to Research (range 27) 45621 | -4/Garrison | Learned Research security intel 45624 | -4/Garrison | Destroyed 10 combat bots 45673 | -4/Garrison | Triggered checkpoint 45715 | -4/Garrison | Entered Research 45715 | -3/Research | Evolved 2 slots: Utility x2 45716 | -3/Research | Identified exit to Quarantine 45717 | -3/Research | Identified exit to Research 45723 | -3/Research | Found Beam Splitter 45915 | -3/Research | Revision forces began assault on 0b10 45941 | -3/Research | Identified exit to Armory 45944 | -3/Research | Spotted B-86 Titan 45947 | -3/Research | Met up with Revision 17++ 45970 | -3/Research | Destroyed B-86 Titan 46415 | -3/Research | Research terminal network offline 46550 | -3/Research | Found Adv. Powered Armor 46638 | -3/Research | Entered Quarantine 46639 | -3/Quarantine | Identified exit to Section 7 46640 | -3/Quarantine | Loaded intel: 17 terminal locations 46766 | -3/Quarantine | Discovered exit to Research (range 23) 46995 | -3/Quarantine | Learned Section 7 non-interactive machine intel 47033 | -3/Quarantine | Learned location of Testing (-2) 47061 | -3/Quarantine | Learned Research trap positions 47077 | -3/Quarantine | Learned Testing interactive machine intel 47081 | -3/Quarantine | Learned Research garrison access intel 47082 | -3/Quarantine | Loaded intel: 1 garrison access location 47084 | -3/Quarantine | Learned Research scanalyzer intel 47095 | -3/Quarantine | Learned Access scanalyzer intel 47114 | -3/Quarantine | Learned Research recycling unit intel 47210 | -3/Quarantine | Spotted Fortress 47335 | -3/Quarantine | Destroyed Fortress 47549 | -3/Quarantine | Entered Section 7 47550 | -3/Section 7 | Loaded intel: 144 non-interactive machine locations 47725 | -3/Section 7 | Destroyed 7 combat bots 47947 | -3/Section 7 | Found Exp. Core Analyzer 48054 | -3/Section 7 | Spotted S7 Guard 48077 | -3/Section 7 | Destroyed S7 Guard 48212 | -3/Section 7 | Spotted B-86 Titan 48230 | -3/Section 7 | Destroyed B-86 Titan 48299 | -3/Section 7 | First assault squad dispatched 48328 | -3/Section 7 | Spotted Executioner 48328 | -3/Section 7 | Spotted Executioner 48338 | -3/Section 7 | Destroyed Executioner 48341 | -3/Section 7 | Destroyed Executioner 48407 | -3/Section 7 | Spotted B-99 Colossus 48411 | -3/Section 7 | Scanned by Researcher 48463 | -3/Section 7 | Destroyed B-99 Colossus 48517 | -3/Section 7 | Destroyed 8 combat bots 48519 | -3/Section 7 | Spotted Alpha 7 48519 | -3/Section 7 | Spotted Alpha 7 48542 | -3/Section 7 | Destroyed Alpha 7 48559 | -3/Section 7 | Destroyed Alpha 7 48961 | -3/Section 7 | Intercept squad dispatched 48967 | -3/Section 7 | Spotted Tracker 48968 | -3/Section 7 | Spotted Tracker 48980 | -3/Section 7 | Spotted Combat Programmer 48981 | -3/Section 7 | Found Adv. Powered Armor 48988 | -3/Section 7 | Destroyed Combat Programmer 48990 | -3/Section 7 | Destroyed Tracker 48996 | -3/Section 7 | Destroyed Tracker 48999 | -3/Section 7 | Spotted Combat Programmer 49003 | -3/Section 7 | Destroyed Combat Programmer 49112 | -3/Section 7 | Identified exit to Garrison 49165 | -3/Section 7 | Garrison activated, responded to threat 49190 | -3/Section 7 | Entered Garrison 49270 | -3/Garrison | Destroyed 7 combat bots 49303 | -3/Garrison | Discovered exit to Research (range 30) 49303 | -3/Garrison | Discovered exit to Research (range 53) 49303 | -3/Garrison | Discovered exit to Research (range 56) 49319 | -3/Garrison | Destroyed 9 combat bots 49391 | -3/Garrison | Entered Research 49391 | -2/Research | Evolved 2 slots: Power x1, Utility x1 49392 | -2/Research | Loaded intel: 80 trap records 49393 | -2/Research | Loaded intel: 4 recycling unit locations 49394 | -2/Research | Loaded intel: 6 scanalyzer locations 49395 | -2/Research | Loaded intel: 2 garrison access locations 49395 | -2/Research | Found Singularity Reactor 49541 | -2/Research | Identified exit to Testing 49541 | -2/Research | Discovered exit to Testing (range 32) 49636 | -2/Research | Spotted B-90 Cyclops 49652 | -2/Research | Spotted B-90 Cyclops 49657 | -2/Research | Destroyed B-90 Cyclops 49674 | -2/Research | Destroyed B-90 Cyclops 49711 | -2/Research | Destroyed 8 combat bots 49717 | -2/Research | Identified exit to Access 49717 | -2/Research | Discovered exit to Access (range 44) 49817 | -2/Research | Entered Access 49817 | -1/Access | Evolved 2 slots: Utility x2 49818 | -1/Access | Loaded intel: 4 scanalyzer locations 50067 | -1/Access | First assault squad dispatched 50099 | -1/Access | Identified exit to Command 50175 | -1/Access | Destroyed 8 combat bots 50516 | -1/Access | Intercept squad dispatched 50522 | -1/Access | Spotted Tracker 50523 | -1/Access | Spotted Tracker 50531 | -1/Access | Destroyed Tracker 50533 | -1/Access | Destroyed Tracker 50552 | -1/Access | Spotted Combat Programmer 50553 | -1/Access | Spotted Combat Programmer 50559 | -1/Access | Destroyed Combat Programmer 50564 | -1/Access | Destroyed Combat Programmer 50783 | -1/Access | Spotted B-99 Colossus 50800 | -1/Access | Destroyed B-99 Colossus 50961 | -1/Access | Destroyed 12 combat bots 51165 | -1/Access | Intercept squad dispatched 51178 | -1/Access | Spotted Tracker 51178 | -1/Access | Spotted Tracker 51178 | -1/Access | Spotted Tracker 51184 | -1/Access | Destroyed Tracker 51189 | -1/Access | Spotted Combat Programmer 51189 | -1/Access | Destroyed Combat Programmer 51192 | -1/Access | Destroyed Tracker 51195 | -1/Access | Destroyed Tracker 51200 | -1/Access | Spotted Combat Programmer 51201 | -1/Access | Spotted Combat Programmer 51209 | -1/Access | Destroyed Combat Programmer 51214 | -1/Access | Destroyed Combat Programmer 51520 | -1/Access | Build established: Hacker-Gunner 51650 | -1/Access | Spotted B-99 Colossus 51676 | -1/Access | Spotted B-99 Colossus 51716 | -1/Access | Destroyed B-99 Colossus 51726 | -1/Access | Destroyed B-99 Colossus 51745 | -1/Access | High security lockdown imminent 51766 | -1/Access | Destroyed 7 combat bots 51825 | -1/Access | High security lockdown engaged 51878 | -1/Access | Build established: Hacker-Tank 51966 | -1/Access | Destroyed 14 combat bots 52018 | -1/Access | Spotted Investigator 52022 | -1/Access | Destroyed Investigator 52088 | -1/Access | Destroyed 17 combat bots 52182 | -1/Access | Sterilization system engaged 52201 | -1/Access | Spotted Striker 52202 | -1/Access | Found Prototype Launcher 52202 | -1/Access | Identified Containment Facilitator 52226 | -1/Access | Destroyed Striker 52230 | -1/Access | Spotted Executioner 52234 | -1/Access | Spotted Investigator 52237 | -1/Access | Destroyed Investigator 52239 | -1/Access | Destroyed Executioner 52283 | -1/Access | Destroyed 25 combat bots 52370 | -1/Access | Entered Command 52536 | -1/Command | Build established: Hacker-Gunner 52543 | -1/Command | Spotted B-99 Colossus 52558 | -1/Command | System corruption reached 10% 52567 | -1/Command | Destroyed B-99 Colossus 52648 | -1/Command | First assault squad dispatched 52674 | -1/Command | Disengaged cave seal 52733 | -1/Command | Destroyed 7 combat bots 53008 | -1/Command | Destroyed 13 combat bots 53205 | -1/Command | Phase Generator disabled 53499 | -1/Command | High security lockdown imminent 53555 | -1/Command | Spotted M Guard 53555 | -1/Command | Spotted M Guard 53556 | -1/Command | Spotted Combat Programmer 53556 | -1/Command | Spotted Combat Programmer 53579 | -1/Command | High security lockdown engaged 53599 | -1/Command | Destroyed Combat Programmer 53604 | -1/Command | Destroyed Combat Programmer 53628 | -1/Command | Destroyed M Guard 53631 | -1/Command | Destroyed M Guard 53631 | -1/Command | All MAIN.C guards destroyed 53663 | -1/Command | Spotted Executioner 53664 | -1/Command | Spotted Executioner 53668 | -1/Command | Destroyed Executioner 53671 | -1/Command | Destroyed Executioner 53675 | -1/Command | Spotted Executioner 53678 | -1/Command | Destroyed Executioner 53722 | -1/Command | Destroyed 17 combat bots 53733 | -1/Command | Spotted Executioner 53733 | -1/Command | Spotted Striker 53734 | -1/Command | Spotted Investigator 53740 | -1/Command | Destroyed Investigator 53746 | -1/Command | Destroyed Striker 53748 | -1/Command | Destroyed Executioner 53777 | -1/Command | Destroyed 16 combat bots 53882 | -1/Command | Met MAIN.C 53883 | -1/Command | Hacked MAIN.C using A7's code 53888 | -1/Command | 0b10 Conduit disabled 53888 | -1/Command | Spotted Striker 53888 | -1/Command | Spotted Executioner 53888 | -1/Command | Spotted Executioner 53888 | -1/Command | Spotted Striker 53898 | -1/Command | Destroyed Executioner 53901 | -1/Command | Destroyed Executioner 53925 | -1/Command | Destroyed Striker 53959 | -1/Command | Destroyed 20 combat bots 54140 | -1/Command | Destroyed MAIN.C Shell 54143 | -1/Command | MAIN.C activated Command garrisons 54207 | -1/Command | Destroyed MAIN.C 54244 | -1/Command | Found Point Singularity Launcher 54357 | -1/Command | Identified exit to Surface 54357 | -1/Command | Discovered exit to Surface (range 36) 54357 | -1/Command | Discovered exit to Surface (range 101) 54357 | -1/Command | Extracted map data and part IDs from MAIN.C's data core 54389 | -1/Command | Spotted B-99 Colossus 54396 | -1/Command | Destroyed B-99 Colossus 54478 | -1/Command | Spotted Striker 54486 | -1/Command | Destroyed Striker 55733 | *** | Establishing 0b11! Last Messages --------------- [You open your loot box...] [Congratulations on your very own Centrium Leg!] [You open your loot box...] [Congratulations on your very own Cld. Linear Gravjet!] [You open your loot box...] [Congratulations on your very own Adv. Heavy Siege Treads!] [You open your loot box...] [Congratulations on your very own Com. Linear Accelerator!] 55622_ Dropped Adv. Heavy Siege Treads. 55622_ Acquired Adv. Heavy Siege Treads. 55623_ Acquired 10 matter. 55628_ Dropped Adv. Heavy Siege Treads. 55629_ Acquired Adv. Heavy Siege Treads. 55630_ Acquired 10 matter. 55650_ Dropped Cmb. Linear Gravjet. 55650_ Acquired Graviton Cannon. 55721_ The Access Shell folds into the floor. Map ----- +----------------------------------------------------+ | | | | | ?????????????????????????????????????????????????? | | ?????????????????????????????????????????????????? | | ?????????????????????????????????????????????????? | | ?????????????????????????????????????????????????? | | ?????###########?????????????????????????????????? | | ?????# #?????????????????????????????????? | | ?????# #?????????????????????????????????? | | ?????# "" #?????????????????????????????????? | | ?????# """" #?????????????????????????????????? | | ?????# """" #?????????????????????????????????? | | ?????# "" #?????????????????????????????????? | | ?????# #???????????????????????????####### | | ?????# #???????????????????????????# | | ?????####+######???????????????????????????# | | ??????# #???????????????????????????????# """" | | ??????# "" #??????################?????????# """" | | ??????# T" #??????################?????????# """" | | ??????# #??????## % ############ """" | | ??????## ########## ;########### | | ???????# # ### ^^ ^^^^ ; ; # # #### | | ???????#% # ### ^ ^ ^^%^^^^^ ^####"### | | ???????# # ""### ^ ^^^%^^^^^^/ # | | ???????# # ""### ^ "" ^ ^^^^^^^^^%/% % # | | ######## # ""### ^ @" ^ ^^^%^^%^ /%% # | | # + T### ^ ^ ^^^^^ ^^^^/% # | | # " ""### ^ ^ %^^^^^^^%## # | | ?# ### # ""### ^ ^^^^^ ; # # % ##### + | | ### # ## # ""### ;##########?# # | | % # ### ###########?# # | | % # #################??????????# # | | # #################??????????#"""+# | | % %%% %# ## #?????## ######?????????#" | | ## % # # #?????## ##????????#" | | ##% # ## # #?###?# # #???????##" | | # % # #% # ###"#### #### #########"" | | ## # %%% % %% % % % " | | ?####" % %%% %% % % %%%% + | | ????## % ### # # ### # # # #######+##" %% | | ????## #### # #??# % # %% | | ????# % ##?# % # # #?# % # %% | | ????## # # # """"% # ## % ##### | | ?????# % " # """" #####% #???# | | ?????# %#### # """" %+%%%" #???# | | ?????# " ### # """" ##### #???# | | ?????# " # #### #???####+###???# | | ?????# # # ##??# #??????# #?????# | | ?????### ## # #####?# #??????# #?##### | | ???????# # % "" ######+"#########?# #?# | +----------------------------------------------------+ Best States ------------- Heat Dissipation 90 Energy Generation 96 Energy Capacity 1100 Matter Stores 511 Matter Capacity 800 Sight Range 24 Robot Scan Range 20 Terrain Scan Range 24 Terrain Scan Density 210 Power Amplification 30 EM Shielding 4 Corruption Containment 12 Armor Coverage 1600 Resistance: KI 75 Resistance: TH 100 Resistance: EX 85 Resistance: EM 35 Resistance: I 35 Resistance: S 35 Resistance: P 35 Weapon Cycling 25 Evasion (%) 40 Target Analysis 12 Core Analysis 8 Armor Integrity Analysis 40 Recoil Reduction 4 Matter Filtering 50 Kinecelleration 50 Salvage Targeting 4 Offensive Hacking 34 Defensive Hacking 14 Item Schematics ----------------- ECM Suite | -8/Materials | Extracted Lrg. Matter Pod | -8/Materials | Extracted Imp. Signal Interpreter | -8/Materials | Extracted Helical Railgun | -3/Section 7 | Archive Adv. Energy Well | -3/Section 7 | Archive Robot Schematics ------------------ None Fabricated ------------ Nothing Alien Tech Used ----------------- None Achievements -------------- None Challenges ------------ None Cogshop Purchases (316) ------------------------- Autogun (699) Autogun (699) Imp. Treads (874) Imp. Treads (874) Mni. Grenade Launcher (Loot Box) Welding Torch (Loot Box) Med. Armor Plating (699) Datajack (475) Imp. VTOL Module (Loot Box) Reactive Plating (462) Adv. Treads (1096) Hardlight Generator (635) Imp. Deuterium Engine (722) Cld. Particle Cannon (863) Cld. Particle Cannon (863) Imp. Terrain Scanner (963) Weapon Cycler (1151) Core Analyzer (593) Plasma Cutter (818) Carbon-fiber Leg (663) Med. Treads (1583) System Restoration Module (1587) Autogun (604) Autogun (604) Med. Reactive Plating (1025) Kinecellerator (1587) Minigun (941) System Restoration Module (1984) Hardlight Generator (1690) Target Analyzer (723) Med. Treads (1232) Hvy. Deuterium Engine (998) System Restoration Module (1504) Med. Reactive Plating (1369) Hvy. Treads (2569) Cld. Fission Core (1907) Cld. Fission Core (1907) Hvy. Treads (2569) Imp. Heavy Machine Gun (969) Imp. Heavy Machine Gun (969) Imp. Heavy Machine Gun (969) Imp. Heavy Machine Gun (969) Imp. Shock Absorption System (2063) Imp. Thermal Shield (2063) Mak. Salvage Targeting Computer (973) Cld. Fission Core (2427) Adv. Component Analysis Suite (Loot Box) Imp. Thermal Shield (Loot Box) Imp. Kinecellerator (Loot Box) Adv. Hardlight Generator (Loot Box) Adv. Cryofiber Web (Loot Box) Imp. Weapon Cycler (2883) Imp. Kinecellerator (3230) Hvy. Reactive Plating (734) Adv. Hacking Suite (2570) System Restoration Module (2984) Adv. Terrain Scanner (2797) Lrn. Tractor Beam (4931) Adv. Terrain Scan Processor (810) Imp. Target Analyzer (1262) Imp. Heavy Machine Gun (1650) Imp. Heavy Machine Gun (1650) Imp. Heavy Machine Gun (1650) Adv. System Shield (2068) System Restoration Module (2381) Adv. System Shield (1887) System Restoration Module (1694) Imp. Plasma Cutter (972) Adv. Target Analyzer (1033) Adv. Dynamic Insulation System (3268) Mapping Drone Bay (1498) Adv. Thermal Shield (1634) Imp. Armor Integrity Analyzer (1046) Tri-rail Accelerator (3534) Tri-rail Accelerator (3534) Adv. Datajack (1012) Exp. Cooling System (1652) Powered Armor (887) Imp. Heavy Treads (1524) Imp. Heavy Treads (1524) Adv. System Shield (1170) Adv. Hacking Suite (1170) Imp. Force Field (1534) System Restoration Module (1174) Imp. Focal Shield (1520) Hvy. Antimatter Reactor (1069) Hvy. Antimatter Reactor (1069) Imp. Focal Shield (1300) Enh. Optical Array (813) Adv. Focal Shield (1435) Exp. Thermal Shield (1554) Adv. System Restoration Module (1315) Stealth Drone Bay (5128) Imp. Powered Armor (1067) Adv. Weapon Cycler (2568) Imp. Heavy Siege Treads (1545) Imp. Heavy Siege Treads (1545) Imp. Arc Thrower (1248) Imp. Arc Thrower (1248) Imp. Arc Thrower (1248) Exp. Core Analyzer (Loot Box) Lgt. Quantum Reactor (Loot Box) Q-thruster (Loot Box) Adv. Datajack (Loot Box) Quantum Reactor (Loot Box) Lgt. Quantum Reactor (Loot Box) Cmb. Linear Gravjet (Loot Box) Thermal Barrier (Loot Box) Enh. Nova Cannon (Loot Box) Imp. Remote Shield (Loot Box) Exp. Biometal Leg (Loot Box) Imp. KE Penetrator (Loot Box) Quantum Reactor (Loot Box) Particle Reactor (Loot Box) Adv. Quantum Shading Machine (Loot Box) Hyp. Coil Gun (Loot Box) Exp. Q-thruster (Loot Box) Adv. Launcher Guidance Computer (Loot Box) Enh. Nova Cannon (Loot Box) Imp. Phase Shifter (Loot Box) Adv. Launcher Guidance Computer (Loot Box) Lgt. Quantum Reactor (Loot Box) Kinetic Spear (Loot Box) Lgt. Quantum Reactor (Loot Box) Lgt. Quantum Reactor (Loot Box) Centrium Leg (Loot Box) Biometal Leg (Loot Box) Enh. Quantum Rifle (Loot Box) Tesla Rifle (Loot Box) Com. HERF Cannon (Loot Box) Adv. Heavy Siege Treads (Loot Box) Enh. Nova Cannon (Loot Box) Electrostorm Shotgun (Loot Box) Mak. Trap Scanner (1959) Mapping Drone Bay (2341) Imp. System Guard (1056) Tactical Quantum Warhead (3363) Imp. Kinecellerator (2174) Spectral Analyzer (1244) Adv. Powered Armor (1339) Adv. Powered Armor (1339) Lrn. Terrain Scanner (2647) Adv. Terrain Scan Processor (861) Adv. Heavy Siege Treads (Loot Box) Adv. Medium Treads (Loot Box) Adv. Weapon Cycler (Loot Box) Fusion Bomb Launcher (Loot Box) Biometal Leg (Loot Box) Enh. Nova Cannon (Loot Box) Hdn. Centrium Heavy Treads (Loot Box) Centrium Leg (Loot Box) Exp. Shock Absorption System (Loot Box) Beam Splitter (Loot Box) Cmb. Linear Gravjet (Loot Box) Enh. Nova Cannon (Loot Box) Enh. Gamma Bomb Array (Loot Box) Cmb. Linear Gravjet (Loot Box) Lgt. Quantum Reactor (Loot Box) Cmb. Linear Gravjet (Loot Box) HERF Cannon (Loot Box) Enh. Gamma Bomb Array (Loot Box) Thermal Barrier (Loot Box) Enh. Quantum Rifle (Loot Box) Centrium Leg (Loot Box) Imp. Cloaking Device (Loot Box) Lgt. Quantum Reactor (Loot Box) Adv. Power Amplifier (2528) Imp. Quantum Reactor (1418) Imp. Quantum Reactor (1418) Lgt. Quantum Reactor (Loot Box) Exp. Shock Absorption System (Loot Box) Enh. Quantum Rifle (Loot Box) Enh. Quantum Rifle (Loot Box) Q-thruster (Loot Box) Force Lance (Loot Box) Centrium Leg (Loot Box) Enh. Nova Cannon (Loot Box) Enh. Quantum Rifle (Loot Box) Quantum Reactor (Loot Box) Quantum Reactor (Loot Box) Enh. Quantum Rifle (Loot Box) Enh. Nova Cannon (Loot Box) Exp. Gyrokinetic Inverter (Loot Box) Exp. Biometal Heavy Treads (Loot Box) Enh. Quantum Rifle (Loot Box) Quantum Reactor (Loot Box) Helical Railgun (Loot Box) Mic. Antimatter Reactor (Loot Box) Quantum Reactor (Loot Box) Cmb. Linear Gravjet (Loot Box) Cmb. Linear Gravjet (Loot Box) Exp. Thermal Shield (Loot Box) Gamma Rifle (Loot Box) Com. Linear Accelerator (Loot Box) Ragnarok Missile Launcher (Loot Box) Adv. Heavy Siege Treads (Loot Box) Imp. Cloaking Device (Loot Box) Imp. Heavy Treads (Loot Box) Imp. Q-thruster (Loot Box) Biometal Heavy Treads (Loot Box) Enh. Quantum Rifle (Loot Box) Quantum Reactor (Loot Box) Biometal Heavy Treads (Loot Box) Centrium Leg (Loot Box) Antigrav Array (Loot Box) Hdn. Centrium Heavy Treads (Loot Box) Adv. Force Field (2232) Prc. Matter Filter (1888) Adv. Remote Datajack (1391) Adv. Target Analyzer (1363) Graviton Cannon (3234) Graviton Cannon (3234) Hyp. Railgun (1241) Hyp. Railgun (1241) Imp. Armor Integrity Analyzer (1351) Graphene Brace (1161) Singularity Reactor (3697) Hyp. Railgun (1319) Hyp. Railgun (1319) Hvy. Hardcell Cannon (3428) Hvy. Hardcell Cannon (3428) Mapping Drone Bay (1146) Adv. Target Analyzer (1142) Graphene Brace (1347) Mapping Drone Bay (1235) Mapping Drone Bay (1235) Imp. Remote Datajack (1027) Imp. Remote Datajack (1027) Adv. Matter Compressor (1023) Adv. Target Analyzer (1021) Adv. Kinecellerator (2850) Exp. Focal Shield (2850) Exp. Matter Compressor (1393) Imp. Shock Absorption System (1303) Adv. Remote Datajack (1920) Adv. Remote Datajack (1987) Quantum Reactor (Loot Box) Quantum Reactor (Loot Box) Biometal Heavy Treads (Loot Box) Enh. Quantum Rifle (Loot Box) Lgt. Quantum Reactor (Loot Box) Biometal Heavy Treads (Loot Box) Centrium Leg (Loot Box) Lgt. Quantum Reactor (Loot Box) Point Singularity Launcher (Loot Box) Exp. Q-thruster (Loot Box) Hdn. Centrium Leg (Loot Box) Exp. Biometal Medium Treads (Loot Box) Cmb. Linear Gravjet (Loot Box) Adv. System Restoration Module (1467) Adv. System Restoration Module (1467) Adv. System Restoration Module (1926) Cmb. Linear Gravjet (Loot Box) Exp. Biometal Leg (Loot Box) Centrium Leg (Loot Box) Lgt. Quantum Reactor (Loot Box) Adv. Cloaking Device (Loot Box) Centrium Leg (Loot Box) Biometal Heavy Treads (Loot Box) Graviton Cannon (Loot Box) Enh. Nova Cannon (Loot Box) Cmb. Linear Gravjet (Loot Box) Quantum Reactor (Loot Box) Enh. Nova Cannon (Loot Box) Enh. Quantum Rifle (Loot Box) Exp. Reaction Control System (Loot Box) Ragnarok Missile Launcher (Loot Box) Centrium Leg (Loot Box) Enh. Gamma Bomb Array (Loot Box) Centrium Leg (Loot Box) Adv. Phase Shifter (Loot Box) Enh. Nova Cannon (Loot Box) Quantum Reactor (Loot Box) Adv. Heavy Siege Treads (Loot Box) Cld. Q-thruster (Loot Box) Cld. Q-thruster (Loot Box) Adv. Heavy Siege Treads (Loot Box) Biometal Heavy Treads (Loot Box) Adv. Heavy Siege Treads (Loot Box) Cmb. Linear Gravjet (Loot Box) Exp. Shock Absorption System (Loot Box) Enh. Nova Cannon (Loot Box) Exp. Gyrokinetic Inverter (Loot Box) Lgt. Quantum Reactor (Loot Box) Enh. Nova Cannon (Loot Box) Enh. Nova Cannon (Loot Box) Cmb. Linear Gravjet (Loot Box) Cmb. Linear Gravjet (Loot Box) Exp. Gyrokinetic Inverter (Loot Box) Enh. Quantum Rifle (Loot Box) Lgt. Quantum Reactor (Loot Box) Quantum Reactor (Loot Box) Biometal Heavy Treads (Loot Box) Cmb. Linear Gravjet (Loot Box) Quantum Reactor (Loot Box) Enh. Quantum Rifle (Loot Box) Adv. Cloaking Device (Loot Box) Enh. Quantum Rifle (Loot Box) Centrium Leg (Loot Box) Quantum Reactor (Loot Box) Adv. Heavy Siege Treads (Loot Box) Enh. Quantum Rifle (Loot Box) Quantum Reactor (Loot Box) Adv. Phase Shifter (Loot Box) Enh. Quantum Rifle (Loot Box) Enh. Quantum Rifle (Loot Box) Lgt. Quantum Reactor (Loot Box) Point Singularity Launcher (Loot Box) Adv. Heavy Siege Treads (Loot Box) Exp. Shock Absorption System (Loot Box) Enh. Nova Cannon (Loot Box) Enh. Nova Cannon (Loot Box) Centrium Leg (Loot Box) Cld. Linear Gravjet (Loot Box) Adv. Heavy Siege Treads (Loot Box) Com. Linear Accelerator (Loot Box) Game ------ Seed NeutrinoHeatFacilitator Manual? 0 Play Time 10:26:41 Cumulative 569.7 hours Start 2024.12.01 @ 15:57:59 End 2024.12.03 @ 09:09:06 Sessions 9 Manual Loads 0 Difficulty Explorer Special Mode AFD2019/Pay2Buy Game No. 93 Rogue 6 Adventurer 6 Explorer 81 Win Type 1 Total 40 Types 15/8/2/5/2/1/1/4/2 Lore% 88 Gallery% 87 Achievement% 91 Wizard Run 0 Options --------- Layout 1 ASCII 0 Keyboard 0 Movement Mouse Keybinds 0 Fullscreen 1 Font 24/Smallcaps Map View 50x35 Zoom Use 0% Tactical HUD 1 Map Filters NONE Filters NONE Steam 1 RUN: 0799caf4-eb28-4f8f-827c-8ad239801b0e